Workbook

Sheet Geodesie
A1: Paramètres de Base des Géodésies Utilisées
A3: Index | D3: Système 1 | G3: Index | J3: Système 2
A4: Datum: | B4: 1 | D4: Région & Datum: | E4: =(INDEX('Table Datum Shifts'!B15:B203,B4)) -> Monde / WGS84 | G4: Datum: | H4: 40 | J4: Région & Datum: | K4: =(INDEX('Table Datum Shifts'!B15:B203,H4)) -> Europe / ED50
A5: Spheroide: | B5: 42 | D5: Ellipsoïde: | E5: =INDEX(Spheroides!C8:C56,B5) -> WGS 84 | G5: Sphéroïde: | H5: 30 | J5: Ellipsoïde | K5: =INDEX(Spheroides!C8:C56,H5) -> INTERNATIONAL
D6: Gd Axe: | E6: =INDEX(Spheroides!D8:D56,B5) -> 6378137 | J6: Gd Axe | K6: =INDEX(Spheroides!D8:D56,H5) -> 6378388
D7: Pt Axe: | E7: =INDEX(Spheroides!E8:E56,B5) -> 6356752.314 | J7: Pt Axe | K7: =INDEX(Spheroides!E8:E56,H5) -> 6356911.946
D8: e2 | E8: =INDEX(Spheroides!F8:F56,B5) -> 0.006694380067 | J8: e2 | K8: =INDEX(Spheroides!F8:F56,H5) -> 0.006722670062
D9: n | E9: =INDEX(Spheroides!G8:G56,B5) -> 0.001679220406 | J9: n | K9: =INDEX(Spheroides!G8:G56,H5) -> 0.001686340651
D10: 1 / f | E10: =INDEX(Spheroides!H8:H56,B5) -> 298.2572201 | J10: 1 / f | K10: =INDEX(Spheroides!H8:H56,H5) -> 296.9999982
D16: Datum Shifts de 1 vers 2
D17: Dx | E17: 89.5
D18: Dy | E18: 93.8
D19: Dz | E19: 123.1
D20: Rx | E20: 0
D21: Ry | E21: 0
D22: Rz | E22: 0.156
D23: ppm | E23: -1.2
A25: "+0089,50;+0093,80;+0123,10;-0,000;-0,000;+0,156;-1,200"
A26: =INDEX('Table Datum Shifts'!D15:GC203,H4,B4) -> "-0089,50;-0093,80;-0123,10;-0,000;-0,000;-0,156;+1,200"

Sheet Modele de Route
A1: Version du 07/11/97 | B1: Position | C1: =Geodesie!E4 -> Monde / WGS84 | J1: Geographical | M1: =Geodesie!K4 -> Europe / ED50 | S1: Geographical | V1: Slack | W1: Cable Distance | Y1: Cable | Z1: Cumulative | AA1: Totals | AB1: Approx
A2: Christian Auroux | B2: Number | C2: Latitude | F2: Longitude | I2: Heading | J2: Length | K2: Cumul. | M2: Latitude | P2: Longitude | S2: Length | T2: Cumul. | V2: % | W2: Length | X2: Cumul. | Y2: Type | Z2: by type | AA2: By Type | AB2: Depth | AD2: Comments
A3: convgeogeo | J3: (km) | K3: (km) | S3: (km) | T3: (km) | W3: (km) | X3: (km) | AA3: (km) | AB3: (m)
B5: 1 | C5: 36 | D5: 47.551 | E5: =IF(OR(C5<0,AND(C5=0,D5<0)),"S","N") -> N | F5: 22 | G5: 52.758 | H5: =IF(OR(F5<0,AND(F5=0,G5<0)),"W","E") -> E | K5: 0 | M5: =TRUNC(geoshiftlat(C5,D5,F5,G5),0) -> 36 | N5: =(geoshiftlat(C5,D5,F5,G5)-M5)*60 -> 47.61314163 | O5: =IF(OR(M5<0,AND(M5=0,N5<0)),"S","N") -> N | P5: =TRUNC(geoshiftlon(C5,D5,F5,G5),0) -> 22 | Q5: =(geoshiftlon(C5,D5,F5,G5)-P5)*60 -> 52.79530295 | R5: =IF(OR(P5<0,AND(P5=0,Q5<0)),"W","E") -> E | T5: 0 | X5: 0 | Z5: 0 | AA5: =IF(Y4=Y6,"",Z5) -> 0 | AB5: 0 | AD5: Landing Point
I6: =CAP(C5,D5,F5,G5,C7,D7,F7,G7) -> 52.66368633 | J6: =Distance1(C5,D5,F5,G5,C7,D7,F7,G7) -> 175.2109586 | S6: =Distance2(M5,N5,P5,Q5,M7,N7,P7,Q7) -> 175.2079137 | V6: 2 | W6: =S6*(1+V6/100) -> 178.712072 | Y6: DA
B7: =B5+1 -> 2 | C7: 37 | D7: 45 | E7: =IF(OR(C7<0,AND(C7=0,D7<0)),"S","N") -> N | F7: 23 | G7: 87 | H7: =IF(OR(F7<0,AND(F7=0,G7<0)),"W","E") -> E | K7: =K5+J6 -> 175.2109586 | M7: =TRUNC(geoshiftlat(C7,D7,F7,G7),0) -> 37 | N7: =(geoshiftlat(C7,D7,F7,G7)-M7)*60 -> 45.06059443 | O7: =IF(OR(M7<0,AND(M7=0,N7<0)),"S","N") -> N | P7: =TRUNC(geoshiftlon(C7,D7,F7,G7),0) -> 24 | Q7: =(geoshiftlon(C7,D7,F7,G7)-P7)*60 -> 27.03551268 | R7: =IF(OR(P7<0,AND(P7=0,Q7<0)),"W","E") -> E | T7: =T5+S6 -> 175.2079137 | X7: =X5+W6 -> 178.712072 | Z7: =IF(Y6=Y4,Z5+W6,W6) -> 178.712072 | AA7: =IF(Y6=Y8,"",Z7) ->  | AB7: 50 | AD7: *
I8: =CAP(C7,D7,F7,G7,C9,D9,F9,G9) -> 275.2462075 | J8: =Distance1(C7,D7,F7,G7,C9,D9,F9,G9) -> 50.57841049 | S8: 50.57680482 | V8: 2 | W8: 51.58834092 | Y8: DA
B9: =B7+1 -> 3 | C9: 37 | D9: 47.5 | E9: =IF(OR(C9<0,AND(C9=0,D9<0)),"S","N") -> N | F9: 23 | G9: 52.7 | H9: =IF(OR(F9<0,AND(F9=0,G9<0)),"W","E") -> E | K9: =K7+J8 -> 225.7893691 | M9: =TRUNC(geoshiftlat(C9,D9,F9,G9),0) -> 37 | N9: =(geoshiftlat(C9,D9,F9,G9)-M9)*60 -> 47.56070689 | O9: =IF(OR(M9<0,AND(M9=0,N9<0)),"S","N") -> N | P9: =TRUNC(geoshiftlon(C9,D9,F9,G9),0) -> 23 | Q9: =(geoshiftlon(C9,D9,F9,G9)-P9)*60 -> 52.73634711 | R9: =IF(OR(P9<0,AND(P9=0,Q9<0)),"W","E") -> E | T9: =T7+S8 -> 225.7847186 | X9: =X7+W8 -> 230.3004129 | Z9: =IF(Y8=Y6,Z7+W8,W8) -> 230.3004129 | AA9: =IF(Y8=Y10,"",Z9) -> 230.3004129 | AB9: 100 | AD9: DA/SA
I10: =CAP(C9,D9,F9,G9,C11,D11,F11,G11) -> 184.2395445 | J10: =Distance1(C9,D9,F9,G9,C11,D11,F11,G11) -> 13.91198704 | S10: 13.91208639 | V10: 2 | W10: 14.19032812 | Y10: SA
B11: =B9+1 -> 4 | C11: 37 | D11: 40 | E11: =IF(OR(C11<0,AND(C11=0,D11<0)),"S","N") -> N | F11: 23 | G11: 52 | H11: =IF(OR(F11<0,AND(F11=0,G11<0)),"W","E") -> E | K11: =K9+J10 -> 239.7013561 | M11: =TRUNC(geoshiftlat(C11,D11,F11,G11),0) -> 37 | N11: =(geoshiftlat(C11,D11,F11,G11)-M11)*60 -> 40.06085736 | O11: =IF(OR(M11<0,AND(M11=0,N11<0)),"S","N") -> N | P11: =TRUNC(geoshiftlon(C11,D11,F11,G11),0) -> 23 | Q11: =(geoshiftlon(C11,D11,F11,G11)-P11)*60 -> 52.03630702 | R11: =IF(OR(P11<0,AND(P11=0,Q11<0)),"W","E") -> E | T11: =T9+S10 -> 239.6968049 | X11: =X9+W10 -> 244.490741 | Z11: =IF(Y10=Y8,Z9+W10,W10) -> 14.19032812 | AA11: =IF(Y10=Y12,"",Z11) ->  | AB11: 220 | AD11: *
I12: =CAP(C11,D11,F11,G11,C13,D13,F13,G13) -> 5.444367225 | J12: =Distance1(C11,D11,F11,G11,C13,D13,F13,G13) -> 13.93679131 | S12: 13.93688889 | V12: 2 | W12: 14.21562667 | Y12: SA
B13: =B11+1 -> 5 | C13: 37 | D13: 47.5 | E13: =IF(OR(C13<0,AND(C13=0,D13<0)),"S","N") -> N | F13: 23 | G13: 52.9 | H13: =IF(OR(F13<0,AND(F13=0,G13<0)),"W","E") -> E | K13: =K11+J12 -> 253.6381474 | M13: =TRUNC(geoshiftlat(C13,D13,F13,G13),0) -> 37 | N13: =(geoshiftlat(C13,D13,F13,G13)-M13)*60 -> 47.56070593 | O13: =IF(OR(M13<0,AND(M13=0,N13<0)),"S","N") -> N | P13: =TRUNC(geoshiftlon(C13,D13,F13,G13),0) -> 23 | Q13: =(geoshiftlon(C13,D13,F13,G13)-P13)*60 -> 52.93634236 | R13: =IF(OR(P13<0,AND(P13=0,Q13<0)),"W","E") -> E | T13: =T11+S12 -> 253.6336938 | X13: =X11+W12 -> 258.7063677 | Z13: =IF(Y12=Y10,Z11+W12,W12) -> 28.40595479 | AA13: =IF(Y12=Y14,"",Z13) ->  | AB13: 220 | AD13: *
I14: =CAP(C13,D13,F13,G13,C15,D15,F15,G15) -> 292.7846834 | J14: =Distance1(C13,D13,F13,G13,C15,D15,F15,G15) -> 0.2388359369 | S14: =Distance2(M13,N13,P13,Q13,M15,N15,P15,Q15) -> 0.2388296928 | V14: 2 | W14: =S14*(1+V14/100) -> 0.2436062866 | Y14: SA
B15: =B13+1 -> 6 | C15: 37 | D15: 47.55 | E15: =IF(OR(C15<0,AND(C15=0,D15<0)),"S","N") -> N | F15: 23 | G15: 52.75 | H15: =IF(OR(F15<0,AND(F15=0,G15<0)),"W","E") -> E | K15: =K13+J14 -> 253.8769833 | M15: =TRUNC(geoshiftlat(C15,D15,F15,G15),0) -> 37 | N15: =(geoshiftlat(C15,D15,F15,G15)-M15)*60 -> 47.61070567 | O15: =IF(OR(M15<0,AND(M15=0,N15<0)),"S","N") -> N | P15: =TRUNC(geoshiftlon(C15,D15,F15,G15),0) -> 23 | Q15: =(geoshiftlon(C15,D15,F15,G15)-P15)*60 -> 52.7863463 | R15: =IF(OR(P15<0,AND(P15=0,Q15<0)),"W","E") -> E | T15: =T13+S14 -> 253.8725235 | X15: =X13+W14 -> 258.949974 | Z15: =IF(Y14=Y12,Z13+W14,W14) -> 28.64956107 | AA15: =IF(Y14=Y16,"",Z15) ->  | AB15: 300 | AD15: *
I16: =CAP(C15,D15,F15,G15,C17,D17,F17,G17) -> 0 | J16: =Distance1(C15,D15,F15,G15,C17,D17,F17,G17) -> 0 | S16: =Distance2(M15,N15,P15,Q15,M17,N17,P17,Q17) -> 0 | V16: 2 | W16: =S16*(1+V16/100) -> 0 | Y16: SA
B17: =B15+1 -> 7 | C17: 37 | D17: 47.55 | E17: =IF(OR(C17<0,AND(C17=0,D17<0)),"S","N") -> N | F17: 23 | G17: 52.75 | H17: =IF(OR(F17<0,AND(F17=0,G17<0)),"W","E") -> E | K17: =K15+J16 -> 253.8769833 | M17: =TRUNC(geoshiftlat(C17,D17,F17,G17),0) -> 37 | N17: =(geoshiftlat(C17,D17,F17,G17)-M17)*60 -> 47.61070567 | O17: =IF(OR(M17<0,AND(M17=0,N17<0)),"S","N") -> N | P17: =TRUNC(geoshiftlon(C17,D17,F17,G17),0) -> 23 | Q17: =(geoshiftlon(C17,D17,F17,G17)-P17)*60 -> 52.7863463 | R17: =IF(OR(P17<0,AND(P17=0,Q17<0)),"W","E") -> E | T17: =T15+S16 -> 253.8725235 | X17: =X15+W16 -> 258.949974 | Z17: =IF(Y16=Y14,Z15+W16,W16) -> 28.64956107 | AA17: =IF(Y16=Y18,"",Z17) ->  | AB17: 350 | AD17: *
I18: =CAP(C17,D17,F17,G17,C19,D19,F19,G19) -> 0 | J18: =Distance1(C17,D17,F17,G17,C19,D19,F19,G19) -> 0 | S18: =Distance2(M17,N17,P17,Q17,M19,N19,P19,Q19) -> 0 | V18: 2 | W18: =S18*(1+V18/100) -> 0 | Y18: SA
B19: =B17+1 -> 8 | C19: 37 | D19: 47.55 | E19: =IF(OR(C19<0,AND(C19=0,D19<0)),"S","N") -> N | F19: 23 | G19: 52.75 | H19: =IF(OR(F19<0,AND(F19=0,G19<0)),"W","E") -> E | K19: =K17+J18 -> 253.8769833 | M19: =TRUNC(geoshiftlat(C19,D19,F19,G19),0) -> 37 | N19: =(geoshiftlat(C19,D19,F19,G19)-M19)*60 -> 47.61070567 | O19: =IF(OR(M19<0,AND(M19=0,N19<0)),"S","N") -> N | P19: =TRUNC(geoshiftlon(C19,D19,F19,G19),0) -> 23 | Q19: =(geoshiftlon(C19,D19,F19,G19)-P19)*60 -> 52.7863463 | R19: =IF(OR(P19<0,AND(P19=0,Q19<0)),"W","E") -> E | T19: =T17+S18 -> 253.8725235 | X19: =X17+W18 -> 258.949974 | Z19: =IF(Y18=Y16,Z17+W18,W18) -> 28.64956107 | AA19: =IF(Y18=Y20,"",Z19) ->  | AB19: 380 | AD19: Crossing
I20: =CAP(C19,D19,F19,G19,C21,D21,F21,G21) -> 0 | J20: =Distance1(C19,D19,F19,G19,C21,D21,F21,G21) -> 0 | S20: =Distance2(M19,N19,P19,Q19,M21,N21,P21,Q21) -> 0 | V20: 2 | W20: =S20*(1+V20/100) -> 0 | Y20: SA
B21: =B19+1 -> 9 | C21: 37 | D21: 47.55 | E21: =IF(OR(C21<0,AND(C21=0,D21<0)),"S","N") -> N | F21: 23 | G21: 52.75 | H21: =IF(OR(F21<0,AND(F21=0,G21<0)),"W","E") -> E | K21: =K19+J20 -> 253.8769833 | M21: =TRUNC(geoshiftlat(C21,D21,F21,G21),0) -> 37 | N21: =(geoshiftlat(C21,D21,F21,G21)-M21)*60 -> 47.61070567 | O21: =IF(OR(M21<0,AND(M21=0,N21<0)),"S","N") -> N | P21: =TRUNC(geoshiftlon(C21,D21,F21,G21),0) -> 23 | Q21: =(geoshiftlon(C21,D21,F21,G21)-P21)*60 -> 52.7863463 | R21: =IF(OR(P21<0,AND(P21=0,Q21<0)),"W","E") -> E | T21: =T19+S20 -> 253.8725235 | X21: =X19+W20 -> 258.949974 | Z21: =IF(Y20=Y18,Z19+W20,W20) -> 28.64956107 | AA21: =IF(Y20=Y22,"",Z21) ->  | AB21: 400 | AD21: *
I22: =CAP(C21,D21,F21,G21,C23,D23,F23,G23) -> 0 | J22: =Distance1(C21,D21,F21,G21,C23,D23,F23,G23) -> 0 | S22: =Distance2(M21,N21,P21,Q21,M23,N23,P23,Q23) -> 0 | V22: 2 | W22: =S22*(1+V22/100) -> 0 | Y22: SA
B23: =B21+1 -> 10 | C23: 37 | D23: 47.55 | E23: =IF(OR(C23<0,AND(C23=0,D23<0)),"S","N") -> N | F23: 23 | G23: 52.75 | H23: =IF(OR(F23<0,AND(F23=0,G23<0)),"W","E") -> E | K23: =K21+J22 -> 253.8769833 | M23: =TRUNC(geoshiftlat(C23,D23,F23,G23),0) -> 37 | N23: =(geoshiftlat(C23,D23,F23,G23)-M23)*60 -> 47.61070567 | O23: =IF(OR(M23<0,AND(M23=0,N23<0)),"S","N") -> N | P23: =TRUNC(geoshiftlon(C23,D23,F23,G23),0) -> 23 | Q23: =(geoshiftlon(C23,D23,F23,G23)-P23)*60 -> 52.7863463 | R23: =IF(OR(P23<0,AND(P23=0,Q23<0)),"W","E") -> E | T23: =T21+S22 -> 253.8725235 | X23: =X21+W22 -> 258.949974 | Z23: =IF(Y22=Y20,Z21+W22,W22) -> 28.64956107 | AA23: =IF(Y22=Y24,"",Z23) -> 28.64956107 | AB23: 700 | AD23: SA/LWA
I24: =CAP(C23,D23,F23,G23,C25,D25,F25,G25) -> 0 | J24: =Distance1(C23,D23,F23,G23,C25,D25,F25,G25) -> 0 | S24: =Distance2(M23,N23,P23,Q23,M25,N25,P25,Q25) -> 0 | V24: 2 | W24: =S24*(1+V24/100) -> 0 | Y24: LWA
B25: =B23+1 -> 11 | C25: 37 | D25: 47.55 | E25: =IF(OR(C25<0,AND(C25=0,D25<0)),"S","N") -> N | F25: 23 | G25: 52.75 | H25: =IF(OR(F25<0,AND(F25=0,G25<0)),"W","E") -> E | K25: =K23+J24 -> 253.8769833 | M25: =TRUNC(geoshiftlat(C25,D25,F25,G25),0) -> 37 | N25: =(geoshiftlat(C25,D25,F25,G25)-M25)*60 -> 47.61070567 | O25: =IF(OR(M25<0,AND(M25=0,N25<0)),"S","N") -> N | P25: =TRUNC(geoshiftlon(C25,D25,F25,G25),0) -> 23 | Q25: =(geoshiftlon(C25,D25,F25,G25)-P25)*60 -> 52.7863463 | R25: =IF(OR(P25<0,AND(P25=0,Q25<0)),"W","E") -> E | T25: =T23+S24 -> 253.8725235 | X25: =X23+W24 -> 258.949974 | Z25: =IF(Y24=Y22,Z23+W24,W24) -> 0 | AA25: =IF(Y24=Y26,"",Z25) ->  | AB25: 850 | AD25: *
I26: =CAP(C25,D25,F25,G25,C27,D27,F27,G27) -> 0 | J26: =Distance1(C25,D25,F25,G25,C27,D27,F27,G27) -> 0 | S26: =Distance2(M25,N25,P25,Q25,M27,N27,P27,Q27) -> 0 | V26: 2 | W26: =S26*(1+V26/100) -> 0 | Y26: LWA
B27: =B25+1 -> 12 | C27: 37 | D27: 47.55 | E27: =IF(OR(C27<0,AND(C27=0,D27<0)),"S","N") -> N | F27: 23 | G27: 52.75 | H27: =IF(OR(F27<0,AND(F27=0,G27<0)),"W","E") -> E | K27: =K25+J26 -> 253.8769833 | M27: =TRUNC(geoshiftlat(C27,D27,F27,G27),0) -> 37 | N27: =(geoshiftlat(C27,D27,F27,G27)-M27)*60 -> 47.61070567 | O27: =IF(OR(M27<0,AND(M27=0,N27<0)),"S","N") -> N | P27: =TRUNC(geoshiftlon(C27,D27,F27,G27),0) -> 23 | Q27: =(geoshiftlon(C27,D27,F27,G27)-P27)*60 -> 52.7863463 | R27: =IF(OR(P27<0,AND(P27=0,Q27<0)),"W","E") -> E | T27: =T25+S26 -> 253.8725235 | X27: =X25+W26 -> 258.949974 | Z27: =IF(Y26=Y24,Z25+W26,W26) -> 0 | AA27: =IF(Y26=Y28,"",Z27) -> 0 | AB27: 700 | AD27: LWA/SA
I28: =CAP(C27,D27,F27,G27,C29,D29,F29,G29) -> 0 | J28: =Distance1(C27,D27,F27,G27,C29,D29,F29,G29) -> 0 | S28: =Distance2(M27,N27,P27,Q27,M29,N29,P29,Q29) -> 0 | V28: 2 | W28: =S28*(1+V28/100) -> 0 | Y28: SA
B29: =B27+1 -> 13 | C29: 37 | D29: 47.55 | E29: =IF(OR(C29<0,AND(C29=0,D29<0)),"S","N") -> N | F29: 23 | G29: 52.75 | H29: =IF(OR(F29<0,AND(F29=0,G29<0)),"W","E") -> E | K29: =K27+J28 -> 253.8769833 | M29: =TRUNC(geoshiftlat(C29,D29,F29,G29),0) -> 37 | N29: =(geoshiftlat(C29,D29,F29,G29)-M29)*60 -> 47.61070567 | O29: =IF(OR(M29<0,AND(M29=0,N29<0)),"S","N") -> N | P29: =TRUNC(geoshiftlon(C29,D29,F29,G29),0) -> 23 | Q29: =(geoshiftlon(C29,D29,F29,G29)-P29)*60 -> 52.7863463 | R29: =IF(OR(P29<0,AND(P29=0,Q29<0)),"W","E") -> E | T29: =T27+S28 -> 253.8725235 | X29: =X27+W28 -> 258.949974 | Z29: =IF(Y28=Y26,Z27+W28,W28) -> 0 | AA29: =IF(Y28=Y30,"",Z29) ->  | AB29: 450 | AD29: *
I30: =CAP(C29,D29,F29,G29,C31,D31,F31,G31) -> 0 | J30: =Distance1(C29,D29,F29,G29,C31,D31,F31,G31) -> 0 | S30: =Distance2(M29,N29,P29,Q29,M31,N31,P31,Q31) -> 0 | V30: 2 | W30: =S30*(1+V30/100) -> 0 | Y30: SA
B31: =B29+1 -> 14 | C31: 37 | D31: 47.55 | E31: =IF(OR(C31<0,AND(C31=0,D31<0)),"S","N") -> N | F31: 23 | G31: 52.75 | H31: =IF(OR(F31<0,AND(F31=0,G31<0)),"W","E") -> E | K31: =K29+J30 -> 253.8769833 | M31: =TRUNC(geoshiftlat(C31,D31,F31,G31),0) -> 37 | N31: =(geoshiftlat(C31,D31,F31,G31)-M31)*60 -> 47.61070567 | O31: =IF(OR(M31<0,AND(M31=0,N31<0)),"S","N") -> N | P31: =TRUNC(geoshiftlon(C31,D31,F31,G31),0) -> 23 | Q31: =(geoshiftlon(C31,D31,F31,G31)-P31)*60 -> 52.7863463 | R31: =IF(OR(P31<0,AND(P31=0,Q31<0)),"W","E") -> E | T31: =T29+S30 -> 253.8725235 | X31: =X29+W30 -> 258.949974 | Z31: =IF(Y30=Y28,Z29+W30,W30) -> 0 | AA31: =IF(Y30=Y32,"",Z31) ->  | AB31: 200 | AD31: *
I32: =CAP(C31,D31,F31,G31,C33,D33,F33,G33) -> 0 | J32: =Distance1(C31,D31,F31,G31,C33,D33,F33,G33) -> 0 | S32: =Distance2(M31,N31,P31,Q31,M33,N33,P33,Q33) -> 0 | V32: 2 | W32: =S32*(1+V32/100) -> 0 | Y32: SA
B33: =B31+1 -> 15 | C33: 37 | D33: 47.55 | E33: =IF(OR(C33<0,AND(C33=0,D33<0)),"S","N") -> N | F33: 23 | G33: 52.75 | H33: =IF(OR(F33<0,AND(F33=0,G33<0)),"W","E") -> E | K33: =K31+J32 -> 253.8769833 | M33: =TRUNC(geoshiftlat(C33,D33,F33,G33),0) -> 37 | N33: =(geoshiftlat(C33,D33,F33,G33)-M33)*60 -> 47.61070567 | O33: =IF(OR(M33<0,AND(M33=0,N33<0)),"S","N") -> N | P33: =TRUNC(geoshiftlon(C33,D33,F33,G33),0) -> 23 | Q33: =(geoshiftlon(C33,D33,F33,G33)-P33)*60 -> 52.7863463 | R33: =IF(OR(P33<0,AND(P33=0,Q33<0)),"W","E") -> E | T33: =T31+S32 -> 253.8725235 | X33: =X31+W32 -> 258.949974 | Z33: =IF(Y32=Y30,Z31+W32,W32) -> 0 | AA33: =IF(Y32=Y34,"",Z33) -> 0 | AB33: 100 | AD33: SA/DA
I34: =CAP(C33,D33,F33,G33,C35,D35,F35,G35) -> 0 | J34: =Distance1(C33,D33,F33,G33,C35,D35,F35,G35) -> 0 | S34: =Distance2(M33,N33,P33,Q33,M35,N35,P35,Q35) -> 0 | V34: 2 | W34: =S34*(1+V34/100) -> 0 | Y34: DA
B35: =B33+1 -> 16 | C35: 37 | D35: 47.55 | E35: =IF(OR(C35<0,AND(C35=0,D35<0)),"S","N") -> N | F35: 23 | G35: 52.75 | H35: =IF(OR(F35<0,AND(F35=0,G35<0)),"W","E") -> E | K35: =K33+J34 -> 253.8769833 | M35: =TRUNC(geoshiftlat(C35,D35,F35,G35),0) -> 37 | N35: =(geoshiftlat(C35,D35,F35,G35)-M35)*60 -> 47.61070567 | O35: =IF(OR(M35<0,AND(M35=0,N35<0)),"S","N") -> N | P35: =TRUNC(geoshiftlon(C35,D35,F35,G35),0) -> 23 | Q35: =(geoshiftlon(C35,D35,F35,G35)-P35)*60 -> 52.7863463 | R35: =IF(OR(P35<0,AND(P35=0,Q35<0)),"W","E") -> E | T35: =T33+S34 -> 253.8725235 | X35: =X33+W34 -> 258.949974 | Z35: =IF(Y34=Y32,Z33+W34,W34) -> 0 | AA35: =IF(Y34=Y36,"",Z35) ->  | AB35: 0 | AD35: Landing
I36: =CAP(C35,D35,F35,G35,C37,D37,F37,G37) -> 0 | J36: =Distance1(C35,D35,F35,G35,C37,D37,F37,G37) -> 0 | S36: =Distance2(M35,N35,P35,Q35,M37,N37,P37,Q37) -> 0 | V36: 2 | W36: =S36*(1+V36/100) -> 0 | Y36: DA
B37: =B35+1 -> 17 | C37: 37 | D37: 47.55 | E37: =IF(OR(C37<0,AND(C37=0,D37<0)),"S","N") -> N | F37: 23 | G37: 52.75 | H37: =IF(OR(F37<0,AND(F37=0,G37<0)),"W","E") -> E | K37: =K35+J36 -> 253.8769833 | M37: =TRUNC(geoshiftlat(C37,D37,F37,G37),0) -> 37 | N37: =(geoshiftlat(C37,D37,F37,G37)-M37)*60 -> 47.61070567 | O37: =IF(OR(M37<0,AND(M37=0,N37<0)),"S","N") -> N | P37: =TRUNC(geoshiftlon(C37,D37,F37,G37),0) -> 23 | Q37: =(geoshiftlon(C37,D37,F37,G37)-P37)*60 -> 52.7863463 | R37: =IF(OR(P37<0,AND(P37=0,Q37<0)),"W","E") -> E | T37: =T35+S36 -> 253.8725235 | X37: =X35+W36 -> 258.949974 | Z37: =IF(Y36=Y34,Z35+W36,W36) -> 0 | AA37: =IF(Y36=Y38,"",Z37) -> 0 | AB37: 100 | AD37: DA/SA
I38: =CAP(C37,D37,F37,G37,C39,D39,F39,G39) -> 0 | J38: =Distance1(C37,D37,F37,G37,C39,D39,F39,G39) -> 0 | S38: =Distance2(M37,N37,P37,Q37,M39,N39,P39,Q39) -> 0 | V38: 2 | W38: =S38*(1+V38/100) -> 0 | Y38: SA
B39: =B37+1 -> 18 | C39: 37 | D39: 47.55 | E39: =IF(OR(C39<0,AND(C39=0,D39<0)),"S","N") -> N | F39: 23 | G39: 52.75 | H39: =IF(OR(F39<0,AND(F39=0,G39<0)),"W","E") -> E | K39: =K37+J38 -> 253.8769833 | M39: =TRUNC(geoshiftlat(C39,D39,F39,G39),0) -> 37 | N39: =(geoshiftlat(C39,D39,F39,G39)-M39)*60 -> 47.61070567 | O39: =IF(OR(M39<0,AND(M39=0,N39<0)),"S","N") -> N | P39: =TRUNC(geoshiftlon(C39,D39,F39,G39),0) -> 23 | Q39: =(geoshiftlon(C39,D39,F39,G39)-P39)*60 -> 52.7863463 | R39: =IF(OR(P39<0,AND(P39=0,Q39<0)),"W","E") -> E | T39: =T37+S38 -> 253.8725235 | X39: =X37+W38 -> 258.949974 | Z39: =IF(Y38=Y36,Z37+W38,W38) -> 0 | AA39: =IF(Y38=Y40,"",Z39) ->  | AB39: 200 | AD39: *
I40: =CAP(C39,D39,F39,G39,C41,D41,F41,G41) -> 0 | J40: =Distance1(C39,D39,F39,G39,C41,D41,F41,G41) -> 0 | S40: =Distance2(M39,N39,P39,Q39,M41,N41,P41,Q41) -> 0 | V40: 2 | W40: =S40*(1+V40/100) -> 0 | Y40: SA
B41: =B39+1 -> 19 | C41: 37 | D41: 47.55 | E41: =IF(OR(C41<0,AND(C41=0,D41<0)),"S","N") -> N | F41: 23 | G41: 52.75 | H41: =IF(OR(F41<0,AND(F41=0,G41<0)),"W","E") -> E | K41: =K39+J40 -> 253.8769833 | M41: =TRUNC(geoshiftlat(C41,D41,F41,G41),0) -> 37 | N41: =(geoshiftlat(C41,D41,F41,G41)-M41)*60 -> 47.61070567 | O41: =IF(OR(M41<0,AND(M41=0,N41<0)),"S","N") -> N | P41: =TRUNC(geoshiftlon(C41,D41,F41,G41),0) -> 23 | Q41: =(geoshiftlon(C41,D41,F41,G41)-P41)*60 -> 52.7863463 | R41: =IF(OR(P41<0,AND(P41=0,Q41<0)),"W","E") -> E | T41: =T39+S40 -> 253.8725235 | X41: =X39+W40 -> 258.949974 | Z41: =IF(Y40=Y38,Z39+W40,W40) -> 0 | AA41: =IF(Y40=Y42,"",Z41) ->  | AB41: 280 | AD41: *
I42: =CAP(C41,D41,F41,G41,C43,D43,F43,G43) -> 0 | J42: =Distance1(C41,D41,F41,G41,C43,D43,F43,G43) -> 0 | S42: =Distance2(M41,N41,P41,Q41,M43,N43,P43,Q43) -> 0 | V42: 2 | W42: =S42*(1+V42/100) -> 0 | Y42: SA
B43: =B41+1 -> 20 | C43: 37 | D43: 47.55 | E43: =IF(OR(C43<0,AND(C43=0,D43<0)),"S","N") -> N | F43: 23 | G43: 52.75 | H43: =IF(OR(F43<0,AND(F43=0,G43<0)),"W","E") -> E | K43: =K41+J42 -> 253.8769833 | M43: =TRUNC(geoshiftlat(C43,D43,F43,G43),0) -> 37 | N43: =(geoshiftlat(C43,D43,F43,G43)-M43)*60 -> 47.61070567 | O43: =IF(OR(M43<0,AND(M43=0,N43<0)),"S","N") -> N | P43: =TRUNC(geoshiftlon(C43,D43,F43,G43),0) -> 23 | Q43: =(geoshiftlon(C43,D43,F43,G43)-P43)*60 -> 52.7863463 | R43: =IF(OR(P43<0,AND(P43=0,Q43<0)),"W","E") -> E | T43: =T41+S42 -> 253.8725235 | X43: =X41+W42 -> 258.949974 | Z43: =IF(Y42=Y40,Z41+W42,W42) -> 0 | AA43: =IF(Y42=Y44,"",Z43) ->  | AB43: 300 | AD43: *
I44: =CAP(C43,D43,F43,G43,C45,D45,F45,G45) -> 0 | J44: 0 | S44: 0 | V44: 2 | W44: =S44*(1+V44/100) -> 0 | Y44: SA
B45: =B43+1 -> 21 | C45: 37 | D45: 47.55 | E45: =IF(OR(C45<0,AND(C45=0,D45<0)),"S","N") -> N | F45: 23 | G45: 52.75 | H45: =IF(OR(F45<0,AND(F45=0,G45<0)),"W","E") -> E | K45: =K43+J44 -> 253.8769833 | M45: 37 | N45: 47.61070567 | O45: N | P45: 23 | Q45: 52.7863463 | R45: E | T45: =T43+S44 -> 253.8725235 | X45: =X43+W44 -> 258.949974 | Z45: =IF(Y44=Y42,Z43+W44,W44) -> 0 | AA45: =IF(Y44=Y46,"",Z45) ->  | AB45: 400 | AD45: *
I46: =CAP(C45,D45,F45,G45,C47,D47,F47,G47) -> 0 | J46: 0 | S46: 0 | V46: 2 | W46: =S46*(1+V46/100) -> 0 | Y46: SA
B47: =B45+1 -> 22 | C47: 37 | D47: 47.55 | E47: =IF(OR(C47<0,AND(C47=0,D47<0)),"S","N") -> N | F47: 23 | G47: 52.75 | H47: =IF(OR(F47<0,AND(F47=0,G47<0)),"W","E") -> E | K47: =K45+J46 -> 253.8769833 | M47: 37 | N47: 47.61070567 | O47: N | P47: 23 | Q47: 52.7863463 | R47: E | T47: =T45+S46 -> 253.8725235 | X47: =X45+W46 -> 258.949974 | Z47: =IF(Y46=Y44,Z45+W46,W46) -> 0 | AA47: =IF(Y46=Y48,"",Z47) -> 0 | AB47: 700 | AD47: SA/LWA
I48: =CAP(C47,D47,F47,G47,C49,D49,F49,G49) -> 0 | J48: 0 | S48: 0 | V48: 2 | W48: =S48*(1+V48/100) -> 0 | Y48: LWA
B49: =B47+1 -> 23 | C49: 37 | D49: 47.55 | E49: =IF(OR(C49<0,AND(C49=0,D49<0)),"S","N") -> N | F49: 23 | G49: 52.75 | H49: =IF(OR(F49<0,AND(F49=0,G49<0)),"W","E") -> E | K49: =K47+J48 -> 253.8769833 | M49: 37 | N49: 47.61070567 | O49: N | P49: 23 | Q49: 52.7863463 | R49: E | T49: =T47+S48 -> 253.8725235 | X49: =X47+W48 -> 258.949974 | Z49: =IF(Y48=Y46,Z47+W48,W48) -> 0 | AA49: =IF(Y48=Y50,"",Z49) ->  | AB49: 820 | AD49: *
I50: =CAP(C49,D49,F49,G49,C51,D51,F51,G51) -> 0 | J50: =Distance1(C49,D49,F49,G49,C51,D51,F51,G51) -> 0 | S50: =Distance2(M49,N49,P49,Q49,M51,N51,P51,Q51) -> 0 | V50: 2 | W50: =S50*(1+V50/100) -> 0 | Y50: LWA
B51: =B49+1 -> 24 | C51: 37 | D51: 47.55 | E51: =IF(OR(C51<0,AND(C51=0,D51<0)),"S","N") -> N | F51: 23 | G51: 52.75 | H51: =IF(OR(F51<0,AND(F51=0,G51<0)),"W","E") -> E | K51: =K49+J50 -> 253.8769833 | M51: 37 | N51: 47.61070567 | O51: N | P51: 23 | Q51: 52.7863463 | R51: E | T51: =T49+S50 -> 253.8725235 | X51: =X49+W50 -> 258.949974 | Z51: =IF(Y50=Y48,Z49+W50,W50) -> 0 | AA51: =IF(Y50=Y52,"",Z51) ->  | AB51: 850 | AD51: Crossing
I52: =CAP(C51,D51,F51,G51,C53,D53,F53,G53) -> 0 | J52: =Distance1(C51,D51,F51,G51,C53,D53,F53,G53) -> 0 | S52: =Distance2(M51,N51,P51,Q51,M53,N53,P53,Q53) -> 0 | V52: 2 | W52: =S52*(1+V52/100) -> 0 | Y52: LWA
B53: =B51+1 -> 25 | C53: 37 | D53: 47.55 | E53: =IF(OR(C53<0,AND(C53=0,D53<0)),"S","N") -> N | F53: 23 | G53: 52.75 | H53: =IF(OR(F53<0,AND(F53=0,G53<0)),"W","E") -> E | K53: =K51+J52 -> 253.8769833 | M53: =TRUNC(geoshiftlat(C53,D53,F53,G53),0) -> 37 | N53: =(geoshiftlat(C53,D53,F53,G53)-M53)*60 -> 47.61070567 | O53: =IF(OR(M53<0,AND(M53=0,N53<0)),"S","N") -> N | P53: =TRUNC(geoshiftlon(C53,D53,F53,G53),0) -> 23 | Q53: =(geoshiftlon(C53,D53,F53,G53)-P53)*60 -> 52.7863463 | R53: =IF(OR(P53<0,AND(P53=0,Q53<0)),"W","E") -> E | T53: =T51+S52 -> 253.8725235 | X53: =X51+W52 -> 258.949974 | Z53: =IF(Y52=Y50,Z51+W52,W52) -> 0 | AA53: =IF(Y52=Y54,"",Z53) ->  | AB53: 880 | AD53: *
I54: =CAP(C53,D53,F53,G53,C55,D55,F55,G55) -> 0 | J54: =Distance1(C53,D53,F53,G53,C55,D55,F55,G55) -> 0 | S54: =Distance2(M53,N53,P53,Q53,M55,N55,P55,Q55) -> 0 | V54: 2 | W54: =S54*(1+V54/100) -> 0 | Y54: LWA
B55: =B53+1 -> 26 | C55: 37 | D55: 47.55 | E55: =IF(OR(C55<0,AND(C55=0,D55<0)),"S","N") -> N | F55: 23 | G55: 52.75 | H55: =IF(OR(F55<0,AND(F55=0,G55<0)),"W","E") -> E | K55: =K53+J54 -> 253.8769833 | M55: =TRUNC(geoshiftlat(C55,D55,F55,G55),0) -> 37 | N55: =(geoshiftlat(C55,D55,F55,G55)-M55)*60 -> 47.61070567 | O55: =IF(OR(M55<0,AND(M55=0,N55<0)),"S","N") -> N | P55: =TRUNC(geoshiftlon(C55,D55,F55,G55),0) -> 23 | Q55: =(geoshiftlon(C55,D55,F55,G55)-P55)*60 -> 52.7863463 | R55: =IF(OR(P55<0,AND(P55=0,Q55<0)),"W","E") -> E | T55: =T53+S54 -> 253.8725235 | X55: =X53+W54 -> 258.949974 | Z55: =IF(Y54=Y52,Z53+W54,W54) -> 0 | AA55: =IF(Y54=Y56,"",Z55) -> 0 | AB55: 1000 | AD55: LWA/LWP
I56: =CAP(C55,D55,F55,G55,C57,D57,F57,G57) -> 0 | J56: =Distance1(C55,D55,F55,G55,C57,D57,F57,G57) -> 0 | S56: =Distance2(M55,N55,P55,Q55,M57,N57,P57,Q57) -> 0 | V56: 3 | W56: =S56*(1+V56/100) -> 0 | Y56: LWP
B57: =B55+1 -> 27 | C57: 37 | D57: 47.55 | E57: =IF(OR(C57<0,AND(C57=0,D57<0)),"S","N") -> N | F57: 23 | G57: 52.75 | H57: =IF(OR(F57<0,AND(F57=0,G57<0)),"W","E") -> E | K57: =K55+J56 -> 253.8769833 | M57: 37 | N57: 47.61070567 | O57: =IF(OR(M57<0,AND(M57=0,N57<0)),"S","N") -> N | P57: 23 | Q57: 52.7863463 | R57: E | T57: =T55+S56 -> 253.8725235 | X57: =X55+W56 -> 258.949974 | Z57: =IF(Y56=Y54,Z55+W56,W56) -> 0 | AA57: =IF(Y56=Y58,"",Z57) ->  | AB57: 1050 | AD57: *
I58: =CAP(C57,D57,F57,G57,C59,D59,F59,G59) -> 0 | J58: =Distance1(C57,D57,F57,G57,C59,D59,F59,G59) -> 0 | S58: =Distance2(M57,N57,P57,Q57,M59,N59,P59,Q59) -> 0 | V58: 3 | W58: 0 | Y58: LWP
B59: =B57+1 -> 28 | C59: 37 | D59: 47.55 | E59: =IF(OR(C59<0,AND(C59=0,D59<0)),"S","N") -> N | F59: 23 | G59: 52.75 | H59: =IF(OR(F59<0,AND(F59=0,G59<0)),"W","E") -> E | K59: =K57+J58 -> 253.8769833 | M59: 37 | N59: 47.61070567 | O59: N | P59: 23 | Q59: 52.7863463 | R59: E | T59: =T57+S58 -> 253.8725235 | X59: =X57+W58 -> 258.949974 | Z59: =IF(Y58=Y56,Z57+W58,W58) -> 0 | AA59: =IF(Y58=Y60,"",Z59) ->  | AB59: 1020 | AD59: Crossing
I60: =CAP(C59,D59,F59,G59,C61,D61,F61,G61) -> 0 | J60: =Distance1(C59,D59,F59,G59,C61,D61,F61,G61) -> 0 | S60: =Distance2(M59,N59,P59,Q59,M61,N61,P61,Q61) -> 0 | V60: 3 | W60: 0 | Y60: LWP
B61: =B59+1 -> 29 | C61: 37 | D61: 47.55 | E61: =IF(OR(C61<0,AND(C61=0,D61<0)),"S","N") -> N | F61: 23 | G61: 52.75 | H61: =IF(OR(F61<0,AND(F61=0,G61<0)),"W","E") -> E | K61: =K59+J60 -> 253.8769833 | M61: 37 | N61: 47.61070567 | O61: N | P61: 23 | Q61: 52.7863463 | R61: E | T61: =T59+S60 -> 253.8725235 | X61: =X59+W60 -> 258.949974 | Z61: =IF(Y60=Y58,Z59+W60,W60) -> 0 | AA61: =IF(Y60=Y62,"",Z61) ->  | AB61: 1050 | AD61: Crossing
I62: =CAP(C61,D61,F61,G61,C63,D63,F63,G63) -> 0 | J62: =Distance1(C61,D61,F61,G61,C63,D63,F63,G63) -> 0 | S62: =Distance2(M61,N61,P61,Q61,M63,N63,P63,Q63) -> 0 | V62: 3 | W62: 0 | Y62: LWP
B63: =B61+1 -> 30 | C63: 37 | D63: 47.55 | E63: =IF(OR(C63<0,AND(C63=0,D63<0)),"S","N") -> N | F63: 23 | G63: 52.75 | H63: =IF(OR(F63<0,AND(F63=0,G63<0)),"W","E") -> E | K63: =K61+J62 -> 253.8769833 | M63: 37 | N63: 47.61070567 | O63: N | P63: 23 | Q63: 52.7863463 | R63: E | T63: =T61+S62 -> 253.8725235 | X63: =X61+W62 -> 258.949974 | Z63: =IF(Y62=Y60,Z61+W62,W62) -> 0 | AA63: =IF(Y62=Y64,"",Z63) -> 0 | AB63: 1000 | AD63: LWP/LWA
I64: =CAP(C63,D63,F63,G63,C65,D65,F65,G65) -> 0 | J64: =Distance1(C63,D63,F63,G63,C65,D65,F65,G65) -> 0 | S64: =Distance2(M63,N63,P63,Q63,M65,N65,P65,Q65) -> 0 | V64: 2 | W64: 0 | Y64: LWA
B65: =B63+1 -> 31 | C65: 37 | D65: 47.55 | E65: =IF(OR(C65<0,AND(C65=0,D65<0)),"S","N") -> N | F65: 23 | G65: 52.75 | H65: =IF(OR(F65<0,AND(F65=0,G65<0)),"W","E") -> E | K65: =K63+J64 -> 253.8769833 | M65: 37 | N65: 47.61070567 | O65: N | P65: 23 | Q65: 52.7863463 | R65: E | T65: =T63+S64 -> 253.8725235 | X65: =X63+W64 -> 258.949974 | Z65: =IF(Y64=Y62,Z63+W64,W64) -> 0 | AA65: =IF(Y64=Y66,"",Z65) -> 0 | AB65: 700 | AD65: LWA/SA
I66: =CAP(C65,D65,F65,G65,C67,D67,F67,G67) -> 0 | J66: =Distance1(C65,D65,F65,G65,C67,D67,F67,G67) -> 0 | S66: =Distance2(M65,N65,P65,Q65,M67,N67,P67,Q67) -> 0 | V66: 2 | W66: 0 | Y66: SA
B67: =B65+1 -> 32 | C67: 37 | D67: 47.55 | E67: =IF(OR(C67<0,AND(C67=0,D67<0)),"S","N") -> N | F67: 23 | G67: 52.75 | H67: =IF(OR(F67<0,AND(F67=0,G67<0)),"W","E") -> E | K67: =K65+J66 -> 253.8769833 | M67: 37 | N67: 47.61070567 | O67: N | P67: 23 | Q67: 52.7863463 | R67: E | T67: =T65+S66 -> 253.8725235 | X67: =X65+W66 -> 258.949974 | Z67: =IF(Y66=Y64,Z65+W66,W66) -> 0 | AA67: =IF(Y66=Y68,"",Z67) ->  | AB67: 200 | AD67: *
I68: =CAP(C67,D67,F67,G67,C69,D69,F69,G69) -> 0 | J68: =Distance1(C67,D67,F67,G67,C69,D69,F69,G69) -> 0 | S68: =Distance2(M67,N67,P67,Q67,M69,N69,P69,Q69) -> 0 | V68: 2 | W68: =S68*(1+V68/100) -> 0 | Y68: SA
B69: =B67+1 -> 33 | C69: 37 | D69: 47.55 | E69: =IF(OR(C69<0,AND(C69=0,D69<0)),"S","N") -> N | F69: 23 | G69: 52.75 | H69: =IF(OR(F69<0,AND(F69=0,G69<0)),"W","E") -> E | K69: =K67+J68 -> 253.8769833 | M69: 37 | N69: 47.61070567 | O69: N | P69: 23 | Q69: 52.7863463 | R69: E | T69: =T67+S68 -> 253.8725235 | X69: =X67+W68 -> 258.949974 | Z69: =IF(Y68=Y66,Z67+W68,W68) -> 0 | AA69: =IF(Y68=Y70,"",Z69) -> 0 | AB69: 100 | AD69: SA/DA
I70: =CAP(C69,D69,F69,G69,C71,D71,F71,G71) -> 0 | J70: =Distance1(C69,D69,F69,G69,C71,D71,F71,G71) -> 0 | S70: =Distance2(M69,N69,P69,Q69,M71,N71,P71,Q71) -> 0 | V70: 2 | W70: =S70*(1+V70/100) -> 0 | Y70: DA
B71: =B69+1 -> 34 | C71: 37 | D71: 47.55 | E71: =IF(OR(C71<0,AND(C71=0,D71<0)),"S","N") -> N | F71: 23 | G71: 52.75 | H71: =IF(OR(F71<0,AND(F71=0,G71<0)),"W","E") -> E | K71: =K69+J70 -> 253.8769833 | M71: =TRUNC(geoshiftlat(C71,D71,F71,G71),0) -> 37 | N71: =(geoshiftlat(C71,D71,F71,G71)-M71)*60 -> 47.61070567 | O71: =IF(OR(M71<0,AND(M71=0,N71<0)),"S","N") -> N | P71: =TRUNC(geoshiftlon(C71,D71,F71,G71),0) -> 23 | Q71: =(geoshiftlon(C71,D71,F71,G71)-P71)*60 -> 52.7863463 | R71: =IF(OR(P71<0,AND(P71=0,Q71<0)),"W","E") -> E | T71: =T69+S70 -> 253.8725235 | X71: =X69+W70 -> 258.949974 | Z71: =IF(Y70=Y68,Z69+W70,W70) -> 0 | AA71: =IF(Y70=Y72,"",Z71) -> 0 | AB71: 0 | AD71: Canea

Sheet Spheroides
A1: Liste des Ellipsoides Disponibles
C7: Nom | D7: Demi Grand | E7: Demi Petit | F7: e2 | G7: n | H7: 1 / f
B8: 1 | C8: AIRY | D8: 6377563.396 | E8: 6356256.909 | F8: =POWER(1/D8*(SQRT((D8*D8)-(E8*E8))),2) -> 0.006670540074 | G8: 0.00167322025 | H8: =1/((D8-E8)/D8) -> 299.3249613
B9: 2 | C9: AIRY MOD | D9: 6377340.189 | E9: 6356034.448 | F9: 0.006670539981 | G9: 0.001673220305 | H9: 299.3249655
B10: 3 | C10: AUSTRALIAN NATIONAL 1967/84 | D10: 6378160 | E10: 6356774.719 | F10: 0.006694541916 | H10: 298.2499973
B11: 4 | C11: BESSEL 1841 | D11: 6377397.155 | E11: 6356078.963 | F11: 0.006674372175 | G11: 0.001674184787 | H11: 299.1528154
B12: 5 | C12: BESSEL 1841 MOD | D12: 6377483.865 | E12: 6356165.383 | F12: 0.006674372221 | G12: 0.001674184798 | H12: 299.1528133
B13: 6 | C13: BESSEL NGO | D13: 6377492.018 | E13: 6356173.509 | F13: 0.006674372142 | H13: 299.1528168
B14: 7 | C14: BESSEL RD / POTSDAM | D14: 6377397.155 | E14: 6356078.963 | F14: 0.006674372175 | H14: 299.1528154
B15: 8 | C15: BROADCAST | D15: 6378135 | E15: 6356750.52 | F15: 0.006694317783 | H15: 298.2599998
B16: 9 | C16: CLARKE 1856 | D16: 6378235.6 | E16: 6356560.14 | F16: 0.00678514592 | H16: 294.2606801
B17: 10 | C17: CLARKE 1866 | D17: 6378206.4 | E17: 6356583.8 | F17: 0.006768657997 | G17: 0.001697915683 | H17: 294.9786982
B18: 11 | C18: CLARKE 1880 | D18: 6378249.145 | E18: 6356514.87 | F18: 0.006803511142 | G18: 0.001706688477 | H18: 293.4650061
B19: 12 | C19: CLARKE 1880 IGN | D19: 6378249.2 | E19: 6356515 | F19: 0.006803487646 | H19: 293.4660213
B20: 13 | C20: CLARKE 1880 MOD | D20: 6378249.145 | E20: 6356514.87 | F20: 0.006803511142 | G20: 0.001706688477 | H20: 293.4650061
B21: 14 | C21: CLARKE 1880 (PALESTINE) | D21: 6378300.782 | E21: 6356566.427 | F21: 0.006803481156 | H21: 293.4663017
B22: 15 | C22: DANISH 1876 / ANDRAE | D22: 6377104.43 | E22: 6355847.415 | F22: 0.006655555628 | H22: 299.9999967
B23: 16 | C23: EVEREST (INDE) METRIQUE | D23: 6377301.243 | E23: 6356100.23 | F23: 0.00663784612 | H23: 300.8017232
B24: 17 | C24: EVEREST (MALAYA) | D24: 6377295.664 | E24: 6356094.668 | F24: 0.006637846604 | H24: 300.8017012
B25: 18 | C25: EVEREST 1830 | D25: 6377276.345 | E25: 6356075.413 | F25: 0.006637846674 | G25: 0.001664992251 | H25: 300.801698
B26: 19 | C26: EVEREST 1830 (MOD.) | D26: 6377298.561 | E26: 6356097.555 | F26: 0.006637846719 | H26: 300.801696
B27: 20 | C27: EVEREST BORNEO | D27: 6377298.556 | E27: 6356097.555 | F27: 0.006637845161 | H27: 300.8017667
B28: 21 | C28: EVEREST MOD. | D28: 6377304.063 | E28: 6356103.039 | F28: 0.006637846628 | H28: 300.8017001
B29: 22 | C29: FISHER 1960 (MERCURY) | D29: 6378166 | E29: 6356784.284 | F29: 0.0066934215 | H29: 298.3000055
B30: 23 | C30: FISHER 1968 | D30: 6378150 | E30: 6356768.337 | F30: 0.006693421699 | H30: 298.2999966
B31: 24 | C31: FISCHER MOD | D31: 6378160 | E31: 6356774.719 | F31: 0.006694541916 | G31: 0.00167926114 | H31: 298.2499973
B32: 25 | C32: FISHER MOD. 1960 | D32: 6378155 | E32: 6356773.32 | F32: 0.006693421774 | H32: 298.2999933
B33: 26 | C33: GRS 67 | D33: 6378160 | E33: 6356774.516 | F33: 0.006694605357 | H33: 298.2471662
B34: 27 | C34: GRS 80 | D34: 6378137 | E34: 6356752.314 | F34: 0.006694380067 | H34: 298.2572201
B35: 28 | C35: HELMERT 1906 | D35: 6378200 | E35: 6356818 | F35: 0.006693474635 | G35: 0.001678992523 | H35: 298.2976335
B36: 29 | C36: HOUGH | D36: 6378270 | E36: 6356794.343 | F36: 0.006722670158 | G36: 0.001686340675 | H36: 296.999994
B37: 30 | C37: INTERNATIONAL | D37: 6378388 | E37: 6356911.946 | F37: 0.006722670062 | G37: 0.001686340651 | H37: 296.9999982
B38: 31 | C38: JEFFREYS 1948 | D38: 6378099 | E38: 6356631 | F38: 0.006720457146 | H38: 297.0979598
B39: 32 | C39: KRASSOVSKY | D39: 6378245 | E39: 6356863 | F39: 0.00669342749 | G39: 0.001678980657 | H39: 298.2997381
B40: 33 | C40: PRECISE | D40: 6378145 | E40: 6356759.769 | F40: 0.006694542007 | G40: 0.001679261164 | H40: 298.2499932
B41: 34 | C41: REF ELLIPSOIDE 1967 | D41: 6378160 | E41: 6356774.719 | F41: 0.006694541916 | G41: 0.00167926114 | H41: 298.2499973
B42: 35 | C42: S AMERICA 1969 | D42: 6378160 | E42: 6356774.719 | F42: 0.006694541916 | G42: 0.00167926114 | H42: 298.2499973
B43: 36 | C43: STRUVE 1860 | D43: 6378298.3 | E43: 6356657.143 | F43: 0.006774359698 | H43: 294.7300045
B44: 37 | C44: SVANBERG | D44: 6376797 | E44: 6355837.971 | F44: 0.006562725865 | H44: 304.2505929
B45: 38 | C45: WAR OFFICE 1924 | D45: 6378300 | E45: 6356751.689 | F45: 0.006745343375 | H45: 295.9999974
B46: 39 | C46: WGS 60 | D46: 6378165 | E46: 6356783.287 | F46: 0.00669342161 | H46: 298.3000006
B47: 40 | C47: WGS 66 | D47: 6378145 | E47: 6356759.769 | F47: 0.006694542007 | H47: 298.2499932
B48: 41 | C48: WGS 72 | D48: 6378135 | E48: 6356750.52 | F48: 0.006694317783 | G48: 0.00167920473 | H48: 298.2599998
B49: 42 | C49: WGS 84 | D49: 6378137 | E49: 6356752.314 | F49: 0.006694380067 | G49: 0.001679220406 | H49: 298.2572201
B50: 43
B51: 44
B52: 45
B53: 46

Sheet Table Datum Shifts
A1: Datum System 1 | C1: "-0231,00;-0196,00;+0482,00;-0,000;-0,000;-0,000;-0,000"
A2: Datum System 2 | C2: "-0084,00;-0095,00;-0130,00;-0,000;-0,000;-0,000;-0,000"
C3: =MID(C1,2,8) -> -0231,00 | D3: =MID(C1,11,8) -> -0196,00 | E3: =MID(C1,20,8) -> +0482,00 | F3: =MID(C1,29,6) -> -0,000 | G3: =MID(C1,36,6) -> -0,000 | H3: =MID(C1,43,6) -> -0,000 | I3: =MID(C1,50,6) -> -0,000
C4: =MID(C2,2,8) -> -0084,00 | D4: =MID(C2,11,8) -> -0095,00 | E4: =MID(C2,20,8) -> -0130,00 | F4: =MID(C2,29,6) -> -0,000 | G4: =MID(C2,36,6) -> -0,000 | H4: =MID(C2,43,6) -> -0,000 | I4: =MID(C2,50,6) -> -0,000
C5: =C3-C4 -> -147 | D5: -101 | E5: 612 | F5: 0 | G5: 0 | H5: 0 | I5: 0
C6: =ABS(C5) -> 147 | D6: 101 | E6: 612 | F6: 0 | G6: 0 | H6: 0 | I6: 0
C7: =TEXT(C6,"0000,00") -> 0147,00 | D7: =TEXT(D6,"0000,00") -> 0101,00 | E7: =TEXT(E6,"0000,00") -> 0612,00 | F7: =TEXT(F6,"0,000") -> 0,000 | G7: =TEXT(G6,"0,000") -> 0,000 | H7: =TEXT(H6,"0,000") -> 0,000 | I7: =TEXT(I6,"0,000") -> 0,000
C8: =IF(C5>0,CONCATENATE("+",C7),CONCATENATE("-",C7)) -> -0147,00 | D8: -0101,00 | E8: +0612,00 | F8: -0,000 | G8: -0,000 | H8: -0,000 | I8: -0,000
C9: =CONCATENATE("""",C8,";") -> "-0147,00; | D9: =CONCATENATE(D8,";") -> -0101,00; | E9: =CONCATENATE(E8,";") -> +0612,00; | F9: =CONCATENATE(F8,";") -> -0,000; | G9: =CONCATENATE(G8,";") -> -0,000; | H9: =CONCATENATE(H8,";") -> -0,000; | I9: =CONCATENATE(I8,"""") -> -0,000"
A10: Datum Calcule | C10: =CONCATENATE(C9,D9,E9,F9,G9,H9,I9) -> "-0147,00;-0101,00;+0612,00;-0,000;-0,000;-0,000;-0,000"
D12: Vers | E12: Vers | F12: Vers | G12: Vers | H12: Vers | I12: Vers | J12: Vers | K12: Vers | L12: Vers | M12: Vers | N12: Vers | O12: Vers | P12: Vers | Q12: Vers | R12: Vers | S12: Vers | T12: Vers | U12: Vers | V12: Vers | W12: Vers | X12: Vers | Z12: Vers | AA12: Vers | AB12: Vers | AC12: Vers | AE12: Vers | AF12: Vers | AG12: Vers | AH12: Vers | AJ12: Vers | AK12: Vers | AL12: Vers | AM12: Vers | AN12: Vers | AP12: Vers | AQ12: Vers | AR12: Vers | AS12: Vers | AU12: Vers | AV12: Vers | AW12: Vers | AX12: Vers | AY12: Vers | AZ12: Vers | BB12: Vers | BC12: Vers | BD12: Vers | BE12: Vers | BF12: Vers | BG12: Vers | BH12: Vers | BI12: Vers | BJ12: Vers | BL12: Vers | BN12: Vers | BS12: Vers | BV12: Vers | BX12: Vers | BZ12: Vers | CA12: Vers | CB12: Vers | CD12: Vers | CE12: Vers | CF12: Vers | CG12: Vers | CI12: Vers | CJ12: Vers | CK12: Vers | CL12: Vers | CN12: Vers | CO12: Vers | CS12: Vers | CT12: Vers | CU12: Vers | CV12: Vers | CW12: Vers | CX12: Vers | CZ12: Vers | DD12: Vers | DE12: Vers | DF12: Vers | DG12: Vers | DH12: Vers | DL12: Vers | DN12: Vers | DO12: Vers | DP12: Vers | DQ12: Vers | DR12: Vers | DS12: Vers | DT12: Vers | DU12: Vers | DV12: Vers | DW12: Vers | DX12: Vers | DY12: Vers | DZ12: Vers | EA12: Vers | EB12: Vers | EC12: Vers | ED12: Vers | EF12: Vers | EG12: Vers | EH12: Vers | EI12: Vers | EJ12: Vers | EL12: Vers | EM12: Vers | EN12: Vers | EO12: Vers | EP12: Vers | EQ12: Vers | ER12: Vers | ET12: Vers | EU12: Vers | EV12: Vers | EX12: Vers | EY12: Vers | EZ12: Vers | FA12: Vers | FB12: Vers | FC12: Vers | FD12: Vers | FE12: Vers | FF12: Vers | FG12: Vers | FH12: Vers | FI12: Vers | FJ12: Vers | FK12: Vers | FL12: Vers | FM12: Vers | FN12: Vers | FP12: Vers | FQ12: Vers | FR12: Vers | FS12: Vers | FT12: Vers | FU12: Vers | FV12: Vers | FW12: Vers | FX12: Vers | FY12: Vers | FZ12: Vers | GA12: Vers | GB12: Vers
C13: Zone / Datum | D13: Monde / WGS84 | E13: Afrique du Sud / S Africa Cape | F13: Alaska / NAD27 | G13: Alaska / NAD27 | H13: Alaska / NAD83 | I13: Amerique Central / NAD83 | J13: Arabie Saoudite / Nahrwan | K13: Argentine / Campo Inchauste | L13: Argentine / S. America 1969 | M13: Australie / Australian Geodetic 1966 | N13: Australie / Australian Nat | O13: Australie / Autralian | P13: Bahrain / Ain El Abl 1970 | Q13: Bangladesh / Indian | R13: Belize / NAD27 | S13: Bolivie / Prov. S America 1956 | T13: Bolivie / S. America 1969 | U13: Botswana / Cape Arc 1950 | V13: Bresil / S. America 1969 | W13: Brunei / Timbalai | X13: Canada / NAD27 | Y13: Canada / NAD27 (Canada) | Z13: Canal Panama / NAD27 | AA13: Chili / Prov. S Chilean 63 | AB13: Chili / S. America 1969 | AC13: Chypre / ED50 | AD13: Colombie / Bogota Observatory | AE13: Colombie / Prov. S America 1956 | AF13: Colombie / S. America 1969 | AG13: Corée / Tokyo | AH13: Egypte / ED50 | AI13: Egypte / Old Egyptian | AJ13: Emirats Arabes Unifies / Nahrwan | AK13: Equateur / Prov. S American 1956 | AL13: Equateur / S American 1969 | AM13: Erytree / Massawa | AN13: Espagne / ED50 | AO13: Espiranto Santos / Santo (DOS) | AP13: Ethiopie / Adindan | AQ13: Europe / ED50 | AR13: Europe / ED87 | AS13: Finlande / ED50 | AT13: France / ED50 IGN | AU13: France / ED79 France | AV13: France / IGN/NTF | AW13: France / WGS72 France | AX13: Gabon / M'Paraloko | AY13: Gizo / Gizo DOS 1968 | AZ13: Grece / ED50 | BA13: Groenland / NAD27 | BB13: Groenland / Qornoq | BC13: Guatemala / NAD27 | BD13: Guyana / Prov. S American 1956 | BE13: Guyana / S American 1969 | BF13: Honduras / NAD27 | BG13: Hong Kong / Hong Kong 1963 | BH13: Icelande / Hjorsey 1955 | BI13: Ile d'Efate et Erromango / Bellevue (IGN) | BJ13: Ile d'Oahu / ? | BK13: Ile de Costa Rica / NAD27 | BL13: Ile de Cuba / NAD27 | BM13: Ile de Guam / Guam 1963 | BN13: Ile de Kerguelen / Kerguelen | BO13: Ile de l'Ascension / Ascension 1958 | BP13: Ile de la Barbades / NAD27 | BQ13: Ile de la Jamaique / NAD27 | BR13: Ile de Madere / SE Base | BS13: Ile de Sao Miguel / Sao Braz | BT13: Ile de Sardaigne / ED50 | BU13: Ile de Sardaigne / Rome 1940 | BV13: Ile de Sicile / ED50 | BW13: Ile de Tern / Asrto B4 | BX13: Ile Diego Garcia / ISTS 073 Astro 1969 | BY13: Ile Dominique / NAD27 | BZ13: Ile Georgia / DOS 1968 | CA13: Ile Grand Cayman / NAD27 | CB13: Ile Guadalcanal / Gux 1 Astro | CC13: Ile Hawaii / Old Hawaiian | CD13: Ile Hawaii Kauai / Old Hawaiian | CE13: Ile Hawaii Maui / Old Hawaiian | CF13: Ile Hawaii Oahu / Old Hawaiian | CG13: Ile Iwo Jima / Astro Beacon East | CH13: Ile Johnson / Johnson Is 1961 | CI13: Ile Mahe / Ile Mahe 1971 | CJ13: Ile Marcus / Asrto Stn 1952 | CK13: Ile Pitcairn / Pitcairn Astro 1967 | CL13: Ile Saint Helene / Astro DOS 7 | CM13: Ile Santa Maria / Sao Braz | CN13: Ile Tristan da Cunha / Tristan Astro | CO13: Ile Viti Levu / Viti Levu 1916 | CP13: Iles Bahamas / Cape Canaveral | CQ13: Iles Bahamas / NAD27 | CR13: Iles Caicos / NAD27 | CS13: Iles Caiman / LC 5 Astro | CT13: Iles Canaries / Pico de las Nieves | CU13: Iles Chatam / Ile Chatam 1971 | CV13: Iles Cocos / Australian | CW13: Iles de Mascarenes / Reunion | CX13: Iles de Midway / Midway Astro 1961 | CY13: Iles de Paques / Iles de Paques 1967 | CZ13: Iles des Açores / Observatorio 1966 | DA13: Iles des Açores / SW Base | DB13: Iles des Bermudes / Bermuda 1957 | DC13: Iles Falklands / Sapper Hill 1943 | DD13: Iles Maldives / Gandajika Base | DE13: Iles Marshall / Wake Eniwetok 1960 | DF13: Iles Phoenix / Canton Astro 1966 | DG13: Iles Salvages / Marco Astro | DH13: Iles Sous le Vent / NAD27 | DI13: Iles Trinité & Tobago / Naparima (BWI) | DJ13: Iles Trinité & Tobago / S. American 1969 | DK13: Iles Vierges / Puerto Rico | DL13: Iran / ED50 | DM13: Irelande / Ireland 1965 | DN13: Japon / Tokyo | DO13: Kenya / Cape Arc 1950 | DP13: Lesoto / Cape Arc 1950 | DQ13: Liberia / Liberia 1964 | DR13: Malaisie (Est) / Timbalia | DS13: Malaisie (Ouest) / Kertau 1948 | DT13: Malawi / Cape Arc 1950 | DU13: Mali / Adindan | DV13: Maroc / Merchich | DW13: Maui / Maui | DX13: Mexique / NAD27 | DY13: Mindanao / Luzon | DZ13: Monde / DOPLER | EA13: Monde / NWL 10D | EB13: Monde / NWL 9D | EC13: Monde / WGS 72 | ED13: Monde / WGS84 SEA | EE13: Namibie / Schwarzeck | EF13: Neherlandes / RD | EG13: Nepal / Indian | EH13: Nicaragua / NAD27 | EI13: Nigeria / Minna | EJ13: Norvège / ED50 | EK13: Nouvelles Zelandes / GD 1949 | EL13: Oman / Oman | EM13: Paraguay / Chua Astro | EN13: Paraguay / S American 1969 | EO13: Perou / Prov S American 1956 | EP13: Perou / S American 1969 | EQ13: Phillipines / Luzon 1911 | ER13: Portugal / ED50 | ES13: Puerto Rico / Puerto Rico | ET13: Qatar / Nahrwan | EU13: Qatar / Nahrwan Maersk | EV13: Qatar / Qatar National | EW13: Royaume Uni / DOPPLER | EX13: Royaume Uni / ED50 | EY13: Royaume Uni / OS(SN)80 | EZ13: Russie / Pulkovo | FA13: Russie / WGS72 | FB13: Sabah / Timbalai 1948 | FC13: San Salvador / NAD27 | FD13: Sarawak / Timbalai 1948 | FE13: Senegal / Adindan | FF13: Singapour / Kertau 1948 | FG13: Singapour / Kertau 1948 | FH13: Singapour / South Asia | FI13: Somalie / Afgooye | FJ13: Soudan / Adindan | FK13: Sri Lanka / Kandawala | FL13: Sumatra / Djakarta (Batavia) | FM13: Surinam / Zanderij | FN13: Swaziland / Cape Arc 1950 | FO13: Tanzanie / Cale Arc 1950 | FP13: Tasmanie / Australian National | FQ13: Thailande / Indian | FR13: Thailande / Moattama | FS13: Tunisie / Carthage | FT13: Turquie / NAD27 | FU13: USA / NAD27 (CONUS) | FV13: Venezuela / Prov. S. American 1956 | FW13: Venezuela / S. American 1969 | FX13: Vietnam / Indian | FY13: Zaire / Cape Arc 1950 | FZ13: Zambie / Cape Arc 1950 | GA13: Zimbabwe / Cape Arc 1950 | GB13: / | GC13: / | GD13: /
B14: Zone / Datum | C14: Spheroide | D14: WGS84 | E14: Clarke 1880 Mod. | F14: Clarke 1866 | G14: Clarke 1866 | H14: GRS80 | I14: GRS80 | J14: Clarke 1880 Mod. | K14: International | L14: S America 1969 | M14: RE 1967 | N14: RE 1967 | O14: RE 1984 | P14: International | Q14: Everest 1830 | R14: Clarke 1866 | S14: International | T14: S. America 1969 | U14: Clarke 1880 Mod. | V14: S. America 1969 | W14: Everest 1830 | X14: Clarke 1866 | Y14: Clarke 1866 | Z14: Clarke 1866 | AA14: International | AB14: S. America 1969 | AC14: International | AD14: International | AE14: International | AF14: S. America 1969 | AG14: Bessel 1841 | AH14: International | AI14: Helmert 1906 | AJ14: Clarke 1880 Mod | AK14: International | AL14: S American 1969 | AM14: Bessel 1841 | AN14: International | AO14: International | AP14: Clarke 1880 Mod | AQ14: International | AR14: International | AS14: International | AT14: International | AU14: International | AV14: Clarke 1880 (IGN) | AW14: WGS72 | AX14: Clarke 1880 | AY14: International | AZ14: International | BA14: Clarke 1866 | BB14: International | BC14: Clarke 1866 | BD14: International | BE14: S American | BF14: Clarke 1866 | BG14: International | BH14: International | BI14: International | BJ14: Clarke 1866 | BK14: Clarke 1866 | BL14: Clarke 1866 | BM14: Clarke 1966 | BN14: International | BO14: International | BP14: Clarke 1866 | BQ14: Clarke 1866 | BR14: International | BS14: International | BT14: International | BU14: International | BV14: International | BW14: International | BX14: International | BY14: Clarke 1866 | BZ14: International | CA14: Clarke 1866 | CB14: International | CC14: Clarke 1866 | CD14: Clarke 1866 | CE14: Clarke 1866 | CF14: Clarke 1866 | CG14: International | CH14: International | CI14: Clarke 1880 Mod | CJ14: International | CK14: International | CL14: International | CM14: International | CN14: International | CO14: Clarke 1880 Mod | CP14: Clarke 1866 | CQ14: Clarke 1866 | CR14: Clarke 1866 | CS14: Clarke 1866 | CT14: International | CU14: International | CV14: RE 1967 | CW14: International | CX14: International | CY14: International | CZ14: International | DA14: International | DB14: Clarke 1866 | DC14: International | DD14: International | DE14: Hough | DF14: International | DG14: International | DH14: Clarke 1866 | DI14: International | DJ14: S. American 1969 | DK14: Clarke 1866 | DL14: International | DM14: Airy Mod | DN14: Bessel 1841 | DO14: Clarke 1880 Mod | DP14: Clarke 1880 Mod | DQ14: Clarke 1880 Mod | DR14: Everest 1830 | DS14: Everest Mod | DT14: Clarke 1880 Mod | DU14: Clarke 1880 Mod | DV14: Clarke 1880 Mod | DW14: Clarke 1866 | DX14: Clarke 1866 | DY14: Clarke 1866 | DZ14: Precise | EA14: NWL 10D | EB14: NWL 9D | EC14: WGS 72 | ED14: WGS84 | EE14: Bessel 1841 Mod | EF14: Bessel RD | EG14: Everst 1830 | EH14: Clarke 1866 | EI14: Clarke 1880 Mod | EJ14: International | EK14: International | EL14: Clarke 1880 Mod | EM14: International | EN14: S American 1969 | EO14: International | EP14: S American 1969 | EQ14: Clarke 1866 | ER14: International | ES14: Clarke 1866 | ET14: Clarke 1880 Mod | EU14: Clarke 1880 Mod | EV14: International | EW14: Precise | EX14: International | EY14: Airy | EZ14: Krassovsky | FA14: WGS72 | FB14: Everest 1830 | FC14: Clarke 1866 | FD14: Everst 1830 | FE14: Clarke 1880 Mod | FF14: Everest Mod | FG14: Everest 1830 | FH14: Fisher Mod | FI14: Krassovsky | FJ14: Clarke 1880 Mod | FK14: Everest 1830 | FL14: Bessel 1841 | FM14: International | FN14: Clarke 1880 Mod | FO14: Clarke 1880 Mod | FP14: RE 1967 | FQ14: Everest 1830 | FR14: WGS84 | FS14: Clarke 1880 Mod | FT14: Clarke 1866 | FU14: Clarke 1866 | FV14: International | FW14: S. American 1969 | FX14: Everest 1830 | FY14: Clarke 1880 Mod | FZ14: Clarke 1880 Mod | GA14: Clarke 1880 Mod
A15: Depuis | B15: Monde / WGS84 | C15: WGS84 | D15: "-0000,00;-0000,00;-0000,00;-0,000;-0,000;-0,000;-0,000" | E15: "+0136,00;+0108,00;+0292,00;-0,000;-0,000;-0,000;-0,000" | F15: "+0012,62;-0156,56;-0180,52;-0,000;-0,000;-0,814;-0,427" | G15: "+0005,00;-0135,00;-0172,00;-0,000;-0,000;-0,000;-0,000" | H15: "-0000,00;-0000,00;-0000,00;-0,000;-0,000;-0,000;-0,000" | I15: "-0000,00;-0000,00;-0000,00;-0,000;-0,000;-0,000;-0,000" | J15: "+0231,00;+0196,00;-0482,00;-0,000;-0,000;-0,000;-0,000" | K15: "+0148,00;-0136,00;-0090,00;-0,000;-0,000;-0,000;-0,000" | L15: "+0057,00;-0001,00;+0041,00;-0,000;-0,000;-0,000;-0,000" | M15: "+0133,00;+0048,00;-0148,00;-0,000;-0,000;-0,000;-0,000" | N15: "+0122,00;+0041,00;-0150,00;-0,000;-0,000;-0,554;-0,227" | O15: "+0134,00;+0048,00;-0149,00;-0,000;-0,000;-0,000;-0,000" | P15: "+0150,00;+0251,00;+0002,00;-0,000;-0,000;-0,000;-0,000" | Q15: "-0289,00;-0734,00;-0257,00;-0,000;-0,000;-0,000;-0,000" | R15: "-0000,00;-0125,00;-0194,00;-0,000;-0,000;-0,000;-0,000" | S15: "+0288,00;-0175,00;+0376,00;-0,000;-0,000;-0,000;-0,000" | T15: "+0057,00;-0001,00;+0041,00;-0,000;-0,000;-0,000;-0,000" | U15: "+0138,00;+0105,00;+0289,00;-0,000;-0,000;-0,000;-0,000" | V15: "+0057,00;-0001,00;+0041,00;-0,000;-0,000;-0,000;-0,000" | W15: "+0689,00;-0691,00;+0046,00;-0,000;-0,000;-0,000;-0,000" | X15: "+0010,00;-0158,00;-0187,00;-0,000;-0,000;-0,000;-0,000" | Y15: "+0009,00;-0139,00;-0177,50;-0,000;-0,000;-0,554;-0,227" | Z15: "-0000,00;-0125,00;-0201,00;-0,000;-0,000;-0,000;-0,000" | AA15: "-0016,00;-0196,00;-0093,00;-0,000;-0,000;-0,000;-0,000" | AB15: "+0057,00;-0001,00;+0041,00;-0,000;-0,000;-0,000;-0,000" | AC15: "+0104,00;+0101,00;+0140,00;-0,000;-0,000;-0,000;-0,000" | AD15: "-0307,00;-0304,00;+0318,00;-0,000;-0,000;-0,000;-0,000" | AE15: "+0288,00;-0175,00;+0376,00;-0,000;-0,000;-0,000;-0,000" | AF15: "+0057,00;-0001,00;+0041,00;-0,000;-0,000;-0,000;-0,000" | AG15: "+0128,00;-0481,00;-0664,00;-0,000;-0,000;-0,000;-0,000" | AH15: "+0130,00;+0117,00;+0151,00;-0,000;-0,000;-0,000;-0,000" | AI15: "+0130,00;-0110,00;+0013,00;-0,000;-0,000;-0,000;-0,000" | AJ15: "+0249,00;+0156,00;-0381,00;-0,000;-0,000;-0,000;-0,000" | AK15: "+0288,00;-0175,00;+0376,00;-0,000;-0,000;-0,000;-0,000" | AL15: "+0057,00;-0001,00;+0041,00;-0,000;-0,000;-0,000;-0,000" | AM15: "-0639,00;-0405,00;-0060,00;-0,000;-0,000;-0,000;-0,000" | AN15: "+0088,00;+0109,00;+0122,00;-0,000;-0,000;-0,000;-0,000" | AO15: "-0170,00;-0042,00;-0084,00;-0,000;-0,000;-0,000;-0,000" | AP15: "+0165,00;+0011,00;-0206,00;-0,000;-0,000;-0,000;-0,000" | AQ15: "+0089,50;+0093,80;+0123,10;-0,000;-0,000;+0,156;-1,200" | AR15: "+0083,11;+0097,38;+0117,23;+0,006;+0,045;-0,044;-0,122" | AS15: "+0087,00;+0095,00;+0120,00;-0,000;-0,000;-0,000;-0,000" | AT15: "+0084,00;+0097,00;+0117,00;-0,000;-0,000;-0,000;+14,190" | AU15: "+0083,00;+0095,00;+0116,00;-0,000;-0,000;-0,000;+14,190" | AV15: "+0168,00;+0060,00;-0320,00;-0,000;-0,000;-0,000;+54,740" | AW15: "-0000,00;-0012,00;-0006,00;-0,000;-0,000;-0,000;-0,031" | AX15: "+0077,90;+0132,90;-0043,70;-0,000;-0,000;-0,000;-0,000" | AY15: "-0230,00;+0199,00;+0752,00;-0,000;-0,000;-0,000;-0,000" | AZ15: "+0084,00;+0095,00;+0130,00;-0,000;-0,000;-0,000;-0,000" | BA15: "-0011,00;-0114,00;-0195,00;-0,000;-0,000;-0,000;-0,000" | BB15: "-0164,00;-0138,00;+0189,00;-0,000;-0,000;-0,000;-0,000" | BC15: "-0000,00;-0125,00;-0194,00;-0,000;-0,000;-0,000;-0,000" | BD15: "+0288,00;-0175,00;+0376,00;-0,000;-0,000;-0,000;-0,000" | BE15: "+0057,00;-0001,00;+0041,00;-0,000;-0,000;-0,000;-0,000" | BF15: "-0000,00;-0125,00;-0194,00;-0,000;-0,000;-0,000;-0,000" | BG15: "+0156,00;+0271,00;+0189,00;-0,000;-0,000;-0,000;-0,000" | BH15: "+0073,00;-0046,00;+0086,00;-0,000;-0,000;-0,000;-0,000" | BI15: "+0127,00;+0769,00;-0472,00;-0,000;-0,000;-0,000;-0,000" | BJ15: "-0056,00;+0268,00;+0182,50;-0,000;-0,000;-0,554;-0,227" | BK15: "-0000,00;-0125,00;-0194,00;-0,000;-0,000;-0,000;-0,000" | BL15: "+0007,00;-0152,00;-0178,00;-0,000;-0,000;-0,000;-0,000" | BM15: "-0252,00;+0209,00;+0751,00;-0,000;-0,000;-0,000;-0,000" | BN15: "-0145,00;+0187,00;-0103,00;-0,000;-0,000;-0,000;-0,000" | BO15: "+0207,00;-0107,00;-0052,00;-0,000;-0,000;-0,000;-0,000" | BP15: "+0007,00;-0152,00;-0178,00;-0,000;-0,000;-0,000;-0,000" | BQ15: "+0007,00;-0152,00;-0178,00;-0,000;-0,000;-0,000;-0,000" | BR15: "+0499,00;+0249,00;-0314,00;-0,000;-0,000;-0,000;-0,000" | BS15: "+0203,00;-0141,00;-0053,00;-0,000;-0,000;-0,000;-0,000" | BT15: "+0097,00;+0103,00;+0120,00;-0,000;-0,000;-0,000;-0,000" | BU15: "+0255,00;+0065,00;-0009,00;-0,000;-0,000;-0,000;-0,000" | BV15: "+0097,00;+0088,00;+0135,00;-0,000;-0,000;-0,000;-0,000" | BW15: "-0114,00;+0116,00;+0333,00;-0,000;-0,000;-0,000;-0,000" | BX15: "-0208,00;+0435,00;+0229,00;-0,000;-0,000;-0,000;-0,000" | BY15: "+0007,00;-0152,00;-0178,00;-0,000;-0,000;-0,000;-0,000" | BZ15: "-0230,00;+0199,00;+0752,00;-0,000;-0,000;-0,000;-0,000" | CA15: "+0007,00;-0152,00;-0178,00;-0,000;-0,000;-0,000;-0,000" | CB15: "-0252,00;+0209,00;+0751,00;-0,000;-0,000;-0,000;-0,000" | CC15: "-0089,00;+0279,00;+0183,00;-0,000;-0,000;-0,000;-0,000" | CD15: "-0045,00;+0290,00;+0172,00;-0,000;-0,000;-0,000;-0,000" | CE15: "-0065,00;+0290,00;+0190,00;-0,000;-0,000;-0,000;-0,000" | CF15: "-0056,00;+0284,00;+0181,00;-0,000;-0,000;-0,000;-0,000" | CG15: "-0145,00;-0075,00;+0272,00;-0,000;-0,000;-0,000;-0,000" | CH15: "-0191,00;+0077,00;+0204,00;-0,000;-0,000;-0,000;-0,000" | CI15: "-0041,00;+0220,00;+0134,00;-0,000;-0,000;-0,000;-0,000" | CJ15: "-0124,00;+0234,00;+0025,00;-0,000;-0,000;-0,000;-0,000" | CK15: "-0185,00;-0165,00;-0042,00;-0,000;-0,000;-0,000;-0,000" | CL15: "+0320,00;-0550,00;+0494,00;-0,000;-0,000;-0,000;-0,000" | CM15: "+0203,00;-0141,00;-0053,00;-0,000;-0,000;-0,000;-0,000" | CN15: "+0632,00;-0438,00;+0609,00;-0,000;-0,000;-0,000;-0,000" | CO15: "-0051,00;-0391,00;+0036,00;-0,000;-0,000;-0,000;-0,000" | CP15: "+0002,00;-0150,00;-0181,00;-0,000;-0,000;-0,000;-0,000" | CQ15: "+0004,00;-0154,00;-0178,00;-0,000;-0,000;-0,000;-0,000" | CR15: "+0007,00;-0152,00;-0178,00;-0,000;-0,000;-0,000;-0,000" | CS15: "-0042,00;-0124,00;-0147,00;-0,000;-0,000;-0,000;-0,000" | CT15: "+0307,00;+0092,00;-0127,00;-0,000;-0,000;-0,000;-0,000" | CU15: "-0175,00;+0038,00;-0113,00;-0,000;-0,000;-0,000;-0,000" | CV15: "+0491,00;+0022,00;-0435,00;-0,000;-0,000;-0,000;-0,000" | CW15: "-0094,00;+0948,00;+1262,00;-0,000;-0,000;-0,000;-0,000" | CX15: "-0912,00;+0058,00;-1227,00;-0,000;-0,000;-0,000;-0,000" | CY15: "-0211,00;-0147,00;-0111,00;-0,000;-0,000;-0,000;-0,000" | CZ15: "+0425,00;+0169,00;-0081,00;-0,000;-0,000;-0,000;-0,000" | DA15: "+0104,00;-0167,00;+0038,00;-0,000;-0,000;-0,000;-0,000" | DB15: "+0073,00;-0213,00;-0296,00;-0,000;-0,000;-0,000;-0,000" | DC15: "+0355,00;-0016,00;-0074,00;-0,000;-0,000;-0,000;-0,000" | DD15: "+0133,00;+0321,00;-0050,00;-0,000;-0,000;-0,000;-0,000" | DE15: "-0101,00;-0052,00;+0039,00;-0,000;-0,000;-0,000;-0,000" | DF15: "-0298,00;+0304,00;+0375,00;-0,000;-0,000;-0,000;-0,000" | DG15: "+0289,00;+0124,00;-0060,00;-0,000;-0,000;-0,000;-0,000" | DH15: "+0007,00;-0152,00;-0178,00;-0,000;-0,000;-0,000;-0,000" | DI15: "+0002,00;-0374,00;-0172,00;-0,000;-0,000;-0,000;-0,000" | DJ15: "+0057,00;-0001,00;+0041,00;-0,000;-0,000;-0,000;-0,000" | DK15: "-0011,00;-0072,00;+0101,00;-0,000;-0,000;-0,000;-0,000" | DL15: "+0117,00;+0132,00;+0164,00;-0,000;-0,000;-0,000;-0,000" | DM15: "-0506,00;+0122,00;-0611,00;-0,000;-0,000;-0,000;-0,000" | DN15: "+0128,00;-0481,00;-0664,00;-0,000;-0,000;-0,000;-0,000" | DO15: "+0161,00;+0007,00;+0300,00;-0,000;-0,000;-0,000;-0,000" | DP15: "+0125,00;+0108,00;+0295,00;-0,000;-0,000;-0,000;-0,000" | DQ15: "+0090,00;-0040,00;-0088,00;-0,000;-0,000;-0,000;-0,000" | DR15: "+0689,00;-0691,00;+0046,00;-0,000;-0,000;-0,000;-0,000" | DS15: "+0011,00;-0851,00;-0005,00;-0,000;-0,000;-0,000;-0,000" | DT15: "+0161,00;+0073,00;+0317,00;-0,000;-0,000;-0,000;-0,000" | DU15: "+0163,00;+0020,00;-0220,00;-0,000;-0,000;-0,000;-0,000" | DV15: "-0031,00;-0146,00;-0047,00;-0,000;-0,000;-0,000;-0,000" | DW15: "-0065,00;+0272,00;+0192,50;-0,000;-0,000;-0,554;-0,227" | DX15: "+0012,00;-0130,00;-0190,00;-0,000;-0,000;-0,000;-0,000" | DY15: "+0133,00;+0079,00;+0072,00;-0,000;-0,000;-0,000;-0,000" | DZ15: "-0000,00;-0000,00;-0004,50;-0,000;-0,000;-0,814;+0,600" | EA15: "-0000,00;-0000,00;-0004,50;-0,000;-0,000;-0,814;+0,602" | EB15: "-0000,00;-0000,00;-0004,50;-0,000;-0,000;-0,814;+0,600" | EC15: "-0000,00;-0000,00;-0004,50;-0,000;-0,000;-0,554;-0,227" | ED15: "-0000,00;-0000,00;-0000,00;-0,000;-0,000;-0,000;-0,000" | EE15: "-0616,00;-0097,00;+0251,00;-0,000;-0,000;-0,000;-0,000" | EG15: "-0289,00;-0734,00;-0257,00;-0,000;-0,000;-0,000;-0,000" | EH15: "-0000,00;-0125,00;-0194,00;-0,000;-0,000;-0,000;-0,000" | EI15: "+0092,00;+0093,00;-0122,00;-0,000;-0,000;-0,000;-0,000" | EJ15: "+0087,00;+0095,00;+0120,00;-0,000;-0,000;-0,000;-0,000" | EK15: "-0084,00;+0022,00;-0209,00;-0,000;-0,000;-0,000;-0,000" | EL15: "+0346,00;+0001,00;-0224,00;-0,000;-0,000;-0,000;-0,000" | EM15: "+0134,00;-0229,00;+0029,00;-0,000;-0,000;-0,000;-0,000" | EN15: "+0057,00;-0001,00;+0041,00;-0,000;-0,000;-0,000;-0,000" | EO15: "+0288,00;-0175,00;+0376,00;-0,000;-0,000;-0,000;-0,000" | EP15: "+0057,00;-0001,00;+0041,00;-0,000;-0,000;-0,000;-0,000" | EQ15: "+0133,00;+0077,00;+0051,00;-0,000;-0,000;-0,000;-0,000" | ER15: "+0088,00;+0109,00;+0122,00;-0,000;-0,000;-0,000;-0,000" | ES15: "-0011,00;-0072,00;+0101,00;-0,000;-0,000;-0,000;-0,000" | ET15: "+0249,17;+0152,09;-0391,46;-0,000;-0,000;-0,000;-0,000" | EU15: "+0250,20;+0153,09;-0391,70;-0,000;-0,000;-0,000;-0,000" | EV15: "+0128,16;+0282,42;-0021,93;-0,000;-0,000;-0,000;-0,000" | EX15: "+0086,00;+0096,00;+0120,00;-0,000;-0,000;-0,000;-0,000" | EY15: "-0364,71;+0109,42;-0429,00;-0,000;-0,000;+0,156;-1,198" | FB15: "+0689,00;-0691,00;+0046,00;-0,000;-0,000;-0,000;-0,000" | FC15: "-0001,00;-0140,00;-0165,00;-0,000;-0,000;-0,000;-0,000" | FD15: "+0689,00;-0691,00;+0046,00;-0,000;-0,000;-0,000;-0,000" | FE15: "+0128,00;+0018,00;-0224,00;-0,000;-0,000;-0,000;-0,000" | FF15: "+0011,00;-0851,00;-0005,00;-0,000;-0,000;-0,000;-0,000" | FG15: "-0008,21;-0861,39;-0001,31;-0,000;-0,000;-0,814;+0,380" | FH15: "-0007,00;+0010,00;+0026,00;-0,000;-0,000;-0,000;-0,000" | FI15: "+0043,00;+0163,00;-0045,00;-0,000;-0,000;-0,000;-0,000" | FJ15: "+0161,00;+0014,00;-0205,00;-0,000;-0,000;-0,000;-0,000" | FK15: "+0097,00;-0787,00;-0086,00;-0,000;-0,000;-0,000;-0,000" | FL15: "+0377,00;-0681,00;+0050,00;-0,000;-0,000;-0,000;-0,000" | FM15: "+0265,00;-0120,00;+0358,00;-0,000;-0,000;-0,000;-0,000" | FN15: "+0134,00;+0105,00;+0295,00;-0,000;-0,000;-0,000;-0,000" | FO15: "+0158,00;+0012,00;+0299,00;-0,000;-0,000;-0,000;-0,000" | FP15: "+0134,00;+0048,00;-0149,00;-0,000;-0,000;-0,000;-0,000" | FQ15: "-0214,00;-0836,00;-0303,00;-0,000;-0,000;-0,000;-0,000" | FR15: "+0004,69;-0008,50;-0002,89;-0,000;-0,000;-0,000;-0,000" | FS15: "+0263,00;-0006,00;-0431,00;-0,000;-0,000;-0,000;-0,000" | FT15: "+0007,00;-0152,00;-0178,00;-0,000;-0,000;-0,000;-0,000" | FU15: "+0022,00;-0157,00;-0180,50;-0,000;-0,000;-0,554;-0,227" | FV15: "+0288,00;-0175,00;+0376,00;-0,000;-0,000;-0,000;-0,000" | FW15: "+0057,00;-0001,00;+0041,00;-0,000;-0,000;-0,000;-0,000" | FX15: "-0289,00;-0734,00;-0257,00;-0,000;-0,000;-0,000;-0,000" | FY15: "+0169,00;+0019,00;+0278,00;-0,000;-0,000;-0,000;-0,000" | FZ15: "+0147,00;+0074,00;+0283,00;-0,000;-0,000;-0,000;-0,000" | GA15: "+0142,00;+0096,00;+0293,00;-0,000;-0,000;-0,000;-0,000"
A16: Depuis | B16: Afrique du Sud / S Africa Cape | C16: Clarke 1880 Mod. | D16: "-0136,00;-0108,00;-0292,00;-0,000;-0,000;-0,000;-0,000"
A17: Depuis | B17: Alaska / NAD27 | C17: Clarke 1866 | D17: "-0012,62;+0156,56;+0180,52;-0,000;-0,000;+0,814;+0,427"
A18: Depuis | B18: Alaska / NAD27 | C18: Clarke 1866 | D18: "-0005,00;+0135,00;+0172,00;-0,000;-0,000;-0,000;-0,000"
A19: Depuis | B19: Alaska / NAD83 | C19: GRS80 | D19: "-0000,00;-0000,00;-0000,00;-0,000;-0,000;-0,000;-0,000"
A20: Depuis | B20: Amerique Central / NAD83 | C20: GRS80 | D20: "-0000,00;-0000,00;-0000,00;-0,000;-0,000;-0,000;-0,000"
A21: Depuis | B21: Arabie Saoudite / Nahrwan | C21: Clarke 1880 Mod. | D21: "-0231,00;-0196,00;+0482,00;-0,000;-0,000;-0,000;-0,000"
A22: Depuis | B22: Argentine / Campo Inchauste | C22: International | D22: "-0148,00;+0136,00;+0090,00;-0,000;-0,000;-0,000;-0,000"
A23: Depuis | B23: Argentine / S. America 1969 | C23: S America 1969 | D23: "-0057,00;+0001,00;-0041,00;-0,000;-0,000;-0,000;-0,000"
A24: Depuis | B24: Australie / Australian Geodetic 1966 | C24: RE 1967 | D24: "-0133,00;-0048,00;+0148,00;-0,000;-0,000;-0,000;-0,000"
A25: Depuis | B25: Australie / Australian Nat | C25: RE 1967 | D25: "-0122,00;-0041,00;+0150,00;-0,000;-0,000;+0,554;+0,227" | EC25: "-0122,00;-0041,00;+0146,00;-0,000;-0,000;-0,000;-0,000"
A26: Depuis | B26: Australie / Autralian | C26: RE 1984 | D26: "-0134,00;-0048,00;+0149,00;-0,000;-0,000;-0,000;-0,000"
A27: Depuis | B27: Bahreïn / Ain El Abl 1970 | C27: International | D27: "-0150,00;-0251,00;-0002,00;-0,000;-0,000;-0,000;-0,000"
A28: Depuis | B28: Bangladesh / Indian | C28: Everest 1830 | D28: "+0289,00;+0734,00;+0257,00;-0,000;-0,000;-0,000;-0,000"
A29: Depuis | B29: Belize / NAD27 | C29: Clarke 1866 | D29: "-0000,00;+0125,00;+0194,00;-0,000;-0,000;-0,000;-0,000"
A30: Depuis | B30: Bolivie / Prov. S America 1956 | C30: International | D30: "-0288,00;+0175,00;-0376,00;-0,000;-0,000;-0,000;-0,000"
A31: Depuis | B31: Bolivie / S. America 1969 | C31: S. America 1969 | D31: "-0057,00;+0001,00;-0041,00;-0,000;-0,000;-0,000;-0,000"
A32: Depuis | B32: Botswana / Cape Arc 1950 | C32: Clarke 1880 Mod | D32: "-0138,00;-0105,00;-0289,00;-0,000;-0,000;-0,000;-0,000"
A33: Depuis | B33: Bresil / S. America 1969 | C33: S. America 1969 | D33: "-0057,00;+0001,00;-0041,00;-0,000;-0,000;-0,000;-0,000"
A34: Depuis | B34: Brunei / Timbalai | C34: Everest 1830 | D34: "-0689,00;+0691,00;-0046,00;-0,000;-0,000;-0,000;-0,000"
A35: Depuis | B35: Canada / NAD27 | C35: Clarke 1866 | D35: "-0010,00;+0158,00;+0187,00;-0,000;-0,000;-0,000;-0,000"
B36: Canada / NAD27 (Canada) | C36: Clarke 1866 | D36: "-0009,00;+0139,00;+0177,50;-0,000;-0,000;+0,554;+0,227" | EC36: "-0009,00;+0139,00;+0173,00;-0,000;-0,000;-0,000;-0,000"
A37: Depuis | B37: Canal Panama / NAD27 | C37: Clarke 1866 | D37: "-0000,00;+0125,00;+0201,00;-0,000;-0,000;-0,000;-0,000"
A38: Depuis | B38: Chili / Prov. S Chilean 63 | C38: International | D38: "+0016,00;+0196,00;+0093,00;-0,000;-0,000;-0,000;-0,000"
A39: Depuis | B39: Chili / S. America 1969 | C39: S. America 1969 | D39: "-0057,00;+0001,00;-0041,00;-0,000;-0,000;-0,000;-0,000"
B40: Chypre / ED50 | C40: International | D40: "-0104,00;-0101,00;-0140,00;-0,000;-0,000;-0,000;-0,000"
A41: Depuis | B41: Colombie / Bogota Observatory | C41: International | D41: "+0307,00;+0304,00;-0318,00;-0,000;-0,000;-0,000;-0,000"
A42: Depuis | B42: Colombie / Prov. S America 1956 | C42: International | D42: "-0288,00;+0175,00;-0376,00;-0,000;-0,000;-0,000;-0,000"
A43: Depuis | B43: Colombie / S. America 1969 | C43: S. America 1969 | D43: "-0057,00;+0001,00;-0041,00;-0,000;-0,000;-0,000;-0,000"
A44: Depuis | B44: Corée / Tokyo | C44: Bessel 1841 | D44: "-0128,00;+0481,00;+0664,00;-0,000;-0,000;-0,000;-0,000"
B45: Egypte / ED50 | C45: International | D45: "-0130,00;-0117,00;-0151,00;-0,000;-0,000;-0,000;-0,000"
A46: Depuis | B46: Egypte / Old Egyptian | C46: Helmert 1906 | D46: "-0130,00;+0110,00;-0013,00;-0,000;-0,000;-0,000;-0,000"
A47: Depuis | B47: Emirats Arabes Unifies / Nahrwan | C47: Clarke 1880 Mod | D47: "-0249,00;-0156,00;+0381,00;-0,000;-0,000;-0,000;-0,000"
A48: Depuis | B48: Equateur / Prov. S American 1956 | C48: International | D48: "-0288,00;+0175,00;-0376,00;-0,000;-0,000;-0,000;-0,000"
A49: Depuis | B49: Equateur / S American 1969 | C49: S American 1969 | D49: "-0057,00;+0001,00;-0041,00;-0,000;-0,000;-0,000;-0,000"
A50: Depuis | B50: Erytree / Massawa | C50: Bessel 1841 | D50: "+0639,00;+0405,00;+0060,00;-0,000;-0,000;-0,000;-0,000"
B51: Espagne / ED50 | C51: International | D51: "-0088,00;-0109,00;-0122,00;-0,000;-0,000;-0,000;-0,000"
A52: Depuis | B52: Espiranto Santos / Santo (DOS) | C52: International | D52: "+0170,00;+0042,00;+0084,00;-0,000;-0,000;-0,000;-0,000"
A53: Depuis | B53: Ethiopie / Adindan | C53: Clarke 1880 Mod | D53: "-0165,00;-0011,00;+0206,00;-0,000;-0,000;-0,000;-0,000"
A54: Depuis | B54: Europe / ED50 | C54: International | D54: "-0089,50;-0093,80;-0123,10;-0,000;-0,000;-0,156;+1,200" | AR54: "-0006,39;+0003,58;-0005,87;-0,006;+0,045;-0,200;+1,078" | DZ54: "-0089,50;-0093,80;-0127,60;-0,000;-0,000;-0,970;+1,800" | EA54: "-0083,00;-0110,00;-0118,00;-0,000;-0,000;-0,000;-0,000" | EB54: "-0089,50;-0093,80;-0127,60;-0,000;-0,000;-0,970;+1,800" | EZ54: "-0116,50;+0041,20;-0038,60;-0,000;-0,000;-0,710;+0,973"
A55: Depuis | B55: Europe / ED87 | C55: International | D55: "-0083,11;-0097,38;-0117,23;-0,006;-0,045;+0,044;+0,122" | AQ55: "+0006,39;-0003,58;+0005,87;+0,006;-0,045;+0,200;-1,078" | ED55: "-0082,98;-0099,72;-0110,71;-0,105;+0,031;+0,080;-0,314"
B56: Finlande / ED50 | C56: International | D56: "-0087,00;-0095,00;-0120,00;-0,000;-0,000;-0,000;-0,000"
A57: Depuis | B57: France / ED50 IGN | C57: International | D57: "-0084,00;-0097,00;-0117,00;-0,000;-0,000;-0,000;-14,19"
A58: Depuis | B58: France / ED79 France | C58: International | D58: "-0083,00;-0095,00;-0116,00;-0,000;-0,000;-0,000;-14,19"
A59: Depuis | B59: France / IGN/NTF | C59: Clarke 1880 (IGN) | D59: "-0168,00;-0060,00;+0320,00;-0,000;-0,000;-0,000;-54,74"
A60: Depuis | B60: France / WGS72 France | C60: WGS72 | D60: "+0000,00;+0012,00;+0006,00;-0,000;-0,000;-0,000;+0,031"
A61: Depuis | B61: Gabon / M'Paraloko | C61: Clarke 1880 | D61: "-0077,90;-0132,90;+0043,70;-0,000;-0,000;-0,000;-0,000"
A62: Depuis | B62: Gizo / Gizo DOS 1968 | C62: International | D62: "+0230,00;-0199,00;-0752,00;-0,000;-0,000;-0,000;-0,000"
B63: Grece / ED50 | C63: International | D63: "-0084,00;-0095,00;-0130,00;-0,000;-0,000;-0,000;-0,000"
A64: Depuis | B64: Groenland / NAD27 | C64: Clarke 1866 | D64: "+0011,00;+0114,00;+0195,00;-0,000;-0,000;-0,000;-0,000"
A65: Depuis | B65: Groenland / Qornoq | C65: International | D65: "+0164,00;+0138,00;-0189,00;-0,000;-0,000;-0,000;-0,000"
A66: Depuis | B66: Guatemala / NAD27 | C66: Clarke 1866 | D66: "-0000,00;+0125,00;+0194,00;-0,000;-0,000;-0,000;-0,000"
A67: Depuis | B67: Guyana / Prov. S American 1956 | C67: International | D67: "-0288,00;+0175,00;-0376,00;-0,000;-0,000;-0,000;-0,000"
A68: Depuis | B68: Guyana / S American 1969 | C68: S American | D68: "-0057,00;+0001,00;-0041,00;-0,000;-0,000;-0,000;-0,000"
A69: Depuis | B69: Honduras / NAD27 | C69: Clarke 1866 | D69: "-0000,00;+0125,00;+0194,00;-0,000;-0,000;-0,000;-0,000"
A70: Depuis | B70: Hong Kong / Hong Kong 1963 | C70: International | D70: "-0156,00;-0271,00;-0189,00;-0,000;-0,000;-0,000;-0,000"
A71: Depuis | B71: Icelande / Hjorsey 1955 | C71: International | D71: "-0073,00;+0046,00;-0086,00;-0,000;-0,000;-0,000;-0,000"
A72: Depuis | B72: Ile d'Efate et Erromango / Bellevue (IGN) | C72: International | D72: "-0127,00;-0769,00;+0472,00;-0,000;-0,000;-0,000;-0,000"
A73: Depuis | B73: Ile d'Oahu / ? | C73: Clarke 1866 | D73: "+0056,00;-0268,00;-0182,50;-0,000;-0,000;+0,554;+0,227" | EC73: "+0056,00;-0268,00;-0187,00;-0,000;-0,000;-0,000;-0,000"
A74: Depuis | B74: Ile de Costa Rica / NAD27 | C74: Clarke 1866 | D74: "-0000,00;+0125,00;+0194,00;-0,000;-0,000;-0,000;-0,000"
A75: Depuis | B75: Ile de Cuba / NAD27 | C75: Clarke 1866 | D75: "-0007,00;+0152,00;+0178,00;-0,000;-0,000;-0,000;-0,000"
A76: Depuis | B76: Ile de Guam / Guam 1963 | C76: Clarke 1966 | D76: "+0252,00;-0209,00;-0751,00;-0,000;-0,000;-0,000;-0,000"
A77: Depuis | B77: Ile de Kerguelen / Kerguelen | C77: International | D77: "+0145,00;-0187,00;+0103,00;-0,000;-0,000;-0,000;-0,000"
A78: Depuis | B78: Ile de l'Ascension / Ascension 1958 | C78: International | D78: "-0207,00;+0107,00;+0052,00;-0,000;-0,000;-0,000;-0,000"
A79: Depuis | B79: Ile de la Barbades / NAD27 | C79: Clarke 1866 | D79: "-0007,00;+0152,00;+0178,00;-0,000;-0,000;-0,000;-0,000"
A80: Depuis | B80: Ile de la Jamaique / NAD27 | C80: Clarke 1866 | D80: "-0007,00;+0152,00;+0178,00;-0,000;-0,000;-0,000;-0,000"
A81: Depuis | B81: Ile de Madere / SE Base | C81: International | D81: "-0499,00;-0249,00;+0314,00;-0,000;-0,000;-0,000;-0,000"
A82: Depuis | B82: Ile de Sao Miguel / Sao Braz | C82: International | D82: "-0203,00;+0141,00;+0053,00;-0,000;-0,000;-0,000;-0,000"
B83: Ile de Sardaigne / ED50 | C83: International | D83: "-0097,00;-0103,00;-0120,00;-0,000;-0,000;-0,000;-0,000"
A84: Depuis | B84: Ile de Sardaigne / Rome 1940 | C84: International | D84: "-0255,00;-0065,00;+0009,00;-0,000;-0,000;-0,000;-0,000"
B85: Ile de Sicile / ED50 | C85: International | D85: "-0097,00;-0088,00;-0135,00;-0,000;-0,000;-0,000;-0,000"
A86: Depuis | B86: Ile de Tern / Asrto B4 | C86: International | D86: "+0114,00;-0116,00;-0333,00;-0,000;-0,000;-0,000;-0,000"
A87: Depuis | B87: Ile Diego Garcia / ISTS 073 Astro 1969 | C87: International | D87: "+0208,00;-0435,00;-0229,00;-0,000;-0,000;-0,000;-0,000"
A88: Depuis | B88: Ile Dominique / NAD27 | C88: Clarke 1866 | D88: "-0007,00;+0152,00;+0178,00;-0,000;-0,000;-0,000;-0,000"
A89: Depuis | B89: Ile Georgia / DOS 1968 | C89: International | D89: "+0230,00;-0199,00;-0752,00;-0,000;-0,000;-0,000;-0,000"
A90: Depuis | B90: Ile Grand Cayman / NAD27 | C90: Clarke 1866 | D90: "-0007,00;+0152,00;+0178,00;-0,000;-0,000;-0,000;-0,000"
A91: Depuis | B91: Ile Guadalcanal / Gux 1 Astro | C91: International | D91: "+0252,00;-0209,00;-0751,00;-0,000;-0,000;-0,000;-0,000"
A92: Depuis | B92: Ile Hawaii Hawaii / Old Hawaiian | C92: Clarke 1866 | D92: "+0089,00;-0279,00;-0183,00;-0,000;-0,000;-0,000;-0,000"
A93: Depuis | B93: Ile Hawaii Kauai / Old Hawaiian | C93: Clarke 1866 | D93: "+0045,00;-0290,00;-0172,00;-0,000;-0,000;-0,000;-0,000" | EC93: "+0271,00;-0046,00;-0181,0;-0,000;-0,000;-0,000;-0,000"
A94: Depuis | B94: Ile Hawaii Maui / Old Hawaiian | C94: Clarke 1866 | D94: "+0065,00;-0290,00;-0190,00;-0,000;-0,000;-0,000;-0,000" | EC94: "+0272,00;-0065,00;+0197,00;-0,000;-0,000;-0,000;-0,000"
A95: Depuis | B95: Ile Hawaii Oahu / Old Hawaiian | C95: Clarke 1866 | D95: "+0056,00;-0284,00;-0181,00;-0,000;-0,000;-0,000;-0,000" | EC95: "+0268,00;-0056,00;+0187,00;-0,000;-0,000;-0,000;-0,000"
A96: Depuis | B96: Ile Iwo Jima / Astro Beacon East | C96: International | D96: "+0145,00;+0075,00;-0272,00;-0,000;-0,000;-0,000;-0,000"
A97: Depuis | B97: Ile Johnson / Johnson Is 1961 | C97: International | D97: "+0191,00;-0077,00;-0204,00;-0,000;-0,000;-0,000;-0,000"
A98: Depuis | B98: Ile Mahe / Ile Mahe 1971 | C98: Clarke 1880 Mod | D98: "+0041,00;-0220,00;-0134,00;-0,000;-0,000;-0,000;-0,000"
A99: Depuis | B99: Ile Marcus / Asrto Stn 1952 | C99: International | D99: "+0124,00;-0234,00;-0025,00;-0,000;-0,000;-0,000;-0,000"
A100: Depuis | B100: Ile Pitcairn / Pitcairn Astro 1967 | C100: International | D100: "+0185,00;+0165,00;+0042,00;-0,000;-0,000;-0,000;-0,000"
B101: Ile Saint Helene / Astro DOS 7 | C101: International | D101: "-0320,00;+0550,00;-0494,00;-0,000;-0,000;-0,000;-0,000"
A102: Depuis | B102: Ile Santa Maria / Sao Braz | C102: International | D102: "-0203,00;+0141,00;+0053,00;-0,000;-0,000;-0,000;-0,000"
A103: Depuis | B103: Ile Tristan da Cunha / Tristan Astro | C103: International | D103: "-0632,00;+0438,00;-0609,00;-0,000;-0,000;-0,000;-0,000"
A104: Depuis | B104: Ile Viti Levu / Viti Levu 1916 | C104: Clarke 1880 Mod | D104: "+0051,00;+0391,00;-0036,00;-0,000;-0,000;-0,000;-0,000"
A105: Depuis | B105: Iles Bahamas / Cape Canaveral | C105: Clarke 1866 | D105: "-0002,00;+0150,00;+0181,00;-0,000;-0,000;-0,000;-0,000"
A106: Depuis | B106: Iles Bahamas / NAD27 | C106: Clarke 1866 | D106: "-0004,00;+0154,00;+0178,00;-0,000;-0,000;-0,000;-0,000"
A107: Depuis | B107: Iles Caicos / NAD27 | C107: Clarke 1866 | D107: "-0007,00;+0152,00;+0178,00;-0,000;-0,000;-0,000;-0,000"
A108: Depuis | B108: Iles Caiman / LC 5 Astro | C108: Clarke 1866 | D108: "+0042,00;+0124,00;+0147,00;-0,000;-0,000;-0,000;-0,000"
A109: Depuis | B109: Iles Canaries / Pico de las Nieves | C109: International | D109: "-0307,00;-0092,00;+0127,00;-0,000;-0,000;-0,000;-0,000"
A110: Depuis | B110: Iles Chatam / Ile Chatam 1971 | C110: International | D110: "+0175,00;-0038,00;+0113,00;-0,000;-0,000;-0,000;-0,000"
A111: Depuis | B111: Iles Cocos / Australian | C111: RE 1967 | D111: "-0491,00;-0022,00;+0435,00;-0,000;-0,000;-0,000;-0,000"
A112: Depuis | B112: Iles de Mascarenes / Reunion | C112: International | D112: "+0094,00;-0948,00;-1262,00;-0,000;-0,000;-0,000;-0,000"
A113: Depuis | B113: Iles de Midway / Midway Astro 1961 | C113: International | D113: "+0912,00;-0058,00;+1227,00;-0,000;-0,000;-0,000;-0,000"
A114: Depuis | B114: Iles de Paques / Iles de Paques 1967 | C114: International | D114: "+0211,00;+0147,00;+0111,00;-0,000;-0,000;-0,000;-0,000"
A115: Depuis | B115: Iles des Açores / Observatorio 1966 | C115: International | D115: "-0425,00;-0169,00;+0081,00;-0,000;-0,000;-0,000;-0,000"
A116: Depuis | B116: Iles des Açores / SW Base | C116: International | D116: "-0104,00;+0167,00;-0038,00;-0,000;-0,000;-0,000;-0,000"
A117: Depuis | B117: Iles des Bermudes / Bermuda 1957 | C117: Clarke 1866 | D117: "-0073,00;+0213,00;+0296,00;-0,000;-0,000;-0,000;-0,000"
A118: Depuis | B118: Iles Falklands / Sapper Hill 1943 | C118: International | D118: "-0355,00;+0016,00;+0074,00;-0,000;-0,000;-0,000;-0,000"
A119: Depuis | B119: Iles Maldives / Gandajika Base | C119: International | D119: "-0133,00;-0321,00;+0050,00;-0,000;-0,000;-0,000;-0,000"
A120: Depuis | B120: Iles Marshall / Wake Eniwetok 1960 | C120: Hough | D120: "+0101,00;+0052,00;-0039,00;-0,000;-0,000;-0,000;-0,000"
A121: Depuis | B121: Iles Phoenix / Canton Astro 1966 | C121: International | D121: "+0298,00;-0304,00;-0375,00;-0,000;-0,000;-0,000;-0,000"
A122: Depuis | B122: Iles Salvages / Marco Astro | C122: International | D122: "-0289,00;-0124,00;+0060,00;-0,000;-0,000;-0,000;-0,000"
A123: Depuis | B123: Iles Sous le Vent / NAD27 | C123: Clarke 1866 | D123: "-0007,00;+0152,00;+0178,00;-0,000;-0,000;-0,000;-0,000"
A124: Depuis | B124: Iles Trinité & Tobago / Naparima (BWI) | C124: International | D124: "-0002,00;+0374,00;+0172,00;-0,000;-0,000;-0,000;-0,000"
A125: Depuis | B125: Iles Trinité & Tobago / S. American 1969 | C125: S. American 1969 | D125: "-0057,00;+0001,00;-0041,00;-0,000;-0,000;-0,000;-0,000"
A126: Depuis | B126: Iles Vierges / Puerto Rico | C126: Clarke 1866 | D126: "+0011,00;+0072,00;-0101,00;-0,000;-0,000;-0,000;-0,000"
B127: Iran / ED50 | C127: International | D127: "-0117,00;-0132,00;-0164,00;-0,000;-0,000;-0,000;-0,000"
A128: Depuis | B128: Irelande / Ireland 1965 | C128: Airy Mod | D128: "+0506,00;-0122,00;+0611,00;-0,000;-0,000;-0,000;-0,000"
A129: Depuis | B129: Japon / Tokyo | C129: Bessel 1841 | D129: "-0128,00;+0481,00;+0664,00;-0,000;-0,000;-0,000;-0,000"
A130: Depuis | B130: Kenya / Cape Arc 1960 | C130: Clarke 1880 Mod | D130: "-0161,00;-0007,00;-0300,00;-0,000;-0,000;-0,000;-0,000"
A131: Depuis | B131: Lesotho / Cape Arc 1950 | C131: Clarke 1880 Mod | D131: "-0125,00;-0108,00;-0295,00;-0,000;-0,000;-0,000;-0,000"
A132: Depuis | B132: Liberia / Liberia 1964 | C132: Clarke 1880 Mod | D132: "-0090,00;+0040,00;+0088,00;-0,000;-0,000;-0,000;-0,000"
A133: Depuis | B133: Malaisie (Est) / Timbalia | C133: Everest 1830 | D133: "-0689,00;+0691,00;-0046,00;-0,000;-0,000;-0,000;-0,000"
A134: Depuis | B134: Malaisie (Ouest) / Kertau 1948 | C134: Everest Mod | D134: "-0011,00;+0851,00;+0005,00;-0,000;-0,000;-0,000;-0,000"
A135: Depuis | B135: Malawi / Cape Arc 1950 | C135: Clarke 1880 Mod | D135: "-0161,00;-0073,00;-0317,00;-0,000;-0,000;-0,000;-0,000"
A136: Depuis | B136: Mali / Adindan | C136: Clarke 1880 Mod | D136: "-0163,00;-0020,00;+0220,00;-0,000;-0,000;-0,000;-0,000"
A137: Depuis | B137: Maroc / Merchich | C137: Clarke 1880 Mod | D137: "+0031,00;+0146,00;+0047,00;-0,000;-0,000;-0,000;-0,000"
A138: Depuis | B138: Maui / Maui | C138: Clarke 1866 | D138: "+0065,00;-0272,00;-0192,50;-0,000;-0,000;+0,554;+0,227" | EC138: "+0065,00;-0272,00;-0197,00;-0,000;-0,000;-0,000;-0,000"
A139: Depuis | B139: Mexique / NAD27 | C139: Clarke 1866 | D139: "-0012,00;+0130,00;+0190,00;-0,000;-0,000;-0,000;-0,000"
A140: Depuis | B140: Mindanao / Luzon | C140: Clarke 1866 | D140: "-0133,00;-0079,00;-0072,00;-0,000;-0,000;-0,000;-0,000"
A141: Depuis | B141: Monde / DOPPLER | C141: Precise | D141: "-0000,00;-0000,00;+0004,50;-0,000;-0,000;+0,814;-0,600" | EB141: "-0000,00;-0000,00;-0000,00;-0,000;-0,000;-0,260;+0,827" | EC141: "-0000,00;-0000,00;-0000,00;-0,000;-0,000;+0,260;-0,827" | ED141: "-0000,00;-0000,00;+0004,50;-0,000;-0,000;+0,814;-6,000"
A142: Depuis | B142: Monde / NWL10D | C142: Broadcast | D142: "-0000,00;-0000,00;+0004,50;-0,000;-0,000;+0,814;-0,602"
A143: Depuis | B143: Monde / NWL9D | C143: Precise | D143: "-0000,00;-0000,00;+0004,50;-0,000;-0,000;+0,814;-0,600"
A144: Depuis | B144: Monde / WGS72 | C144: WGS72 | D144: "-0000,00;-0000,00;+0004,50;-0,000;-0,000;+0,554;+0,227"
B145: Monde / WGS84 SEA | C145: WGS84 | D145: "-0000,00;-0000,00;+0000,00;-0,000;-0,000;+0,000;-0,000"
A146: Depuis | B146: Namibie / Schwarzeck | C146: Bessel 1841 Mod | D146: "+0616,00;+0097,00;-0251,00;-0,000;-0,000;-0,000;-0,000"
A147: Depuis | B147: Neherlandes / RD | C147: Bessel RD | AQ147: "+0676,52;+0121,57;+0595,27;-0,000;-0,000;-0,000;-0,000"
A148: Depuis | B148: Nepal / Indian | C148: Everst 1830 | D148: "+0289,00;+0734,00;+0257,00;-0,000;-0,000;-0,000;-0,000"
A149: Depuis | B149: Nicaragua / NAD27 | C149: Clarke 1866 | D149: "-0000,00;+0125,00;+0194,00;-0,000;-0,000;-0,000;-0,000"
A150: Depuis | B150: Nigeria / Minna | C150: Clarke 1880 Mod | D150: "-0092,00;-0093,00;+0122,00;-0,000;-0,000;-0,000;-0,000"
B151: Norvège / ED50 | C151: International | D151: "-0087,00;-0095,00;-0120,00;-0,000;-0,000;-0,000;-0,000"
A152: Depuis | B152: Nouvelles Zelandes / GD 1949 | C152: International | D152: "+0084,00;-0022,00;+0209,00;-0,000;-0,000;-0,000;-0,000"
A153: Depuis | B153: Oman / Oman | C153: Clarke 1880 Mod | D153: "-0346,00;-0001,00;+0224,00;-0,000;-0,000;-0,000;-0,000"
A154: Depuis | B154: Paraguay / Chua Astro | C154: International | D154: "-0134,00;+0229,00;-0029,00;-0,000;-0,000;-0,000;-0,000"
A155: Depuis | B155: Paraguay / S American 1969 | C155: S American 1969 | D155: "-0057,00;+0001,00;-0041,00;-0,000;-0,000;-0,000;-0,000"
A156: Depuis | B156: Perou / Prov S American 1956 | C156: International | D156: "-0288,00;+0175,00;-0376,00;-0,000;-0,000;-0,000;-0,000"
A157: Depuis | B157: Perou / S American 1969 | C157: S American 1969 | D157: "-0057,00;+0001,00;-0041,00;-0,000;-0,000;-0,000;-0,000"
A158: Depuis | B158: Phillipines / Luzon 1911 | C158: Clarke 1866 | D158: "-0133,00;-0077,00;-0051,00;-0,000;-0,000;-0,000;-0,000"
B159: Portugal / ED50 | C159: International | D159: "-0088,00;-0109,00;-0122,00;-0,000;-0,000;-0,000;-0,000"
A160: Depuis | B160: Puerto Rico / Puerto Rico | C160: Clarke 1866 | D160: "+0011,00;+0072,00;-0101,00;-0,000;-0,000;-0,000;-0,000"
A161: Depuis | B161: Qatar / Nahrwan | C161: Clarke 1880 Mod | D161: "-0249,17;-0152,09;+0391,46;-0,000;-0,000;-0,000;+0,000"
B162: Qatar / Nahrwan Maersk | C162: Clarke 1880 Mod | D162: "-0250,20;-0153,09;+0391,70;-0,000;-0,000;-0,000;+0,000"
A163: Depuis | B163: Qatar / Qatar National | C163: International | D163: "-0128,16;-0282,42;+0021,93;-0,000;-0,000;-0,000;-0,000"
A164: Depuis | B164: Royaume Uni / DOPPLER | C164: Precise | EY164: "-0370,30;+0111,06;-0431,17;-0,000;-0,000;+0,800;-0,400"
A165: Depuis | B165: Royaume Uni / ED50 | C165: International | D165: "-0086,00;-0096,00;-0120,00;-0,000;-0,000;-0,000;-0,000" | EY165: "-0459,80;+0017,26;-0558,77;-0,000;-0,000;-0,170;+1,400"
A166: Depuis | B166: Royaume Uni / OS(SN)80 | C166: Airy | D166: "+0364,71;-0109,42;+0429,00;-0,000;-0,000;-0,156;+1,198" | EX166: "+0454,21;-0015,62;+0552,10;-0,000;-0,000;-0,000;-0,000"
A167: Depuis | B167: Russie / Pulkovo | C167: Krassovsky | AQ167: "+0116,00;-0041,20;+0038,60;-0,000;-0,000;+0,710;-0,973"
A168: Depuis | B168: Russie / WGS72 | C168: WGS72 | EZ168: "-0027,00;+0135,00;+0089,00;-0,000;-0,000;-0,000;-0,000"
A169: Depuis | B169: Sabah / Timbalai 1948 | C169: Everest 1830 | D169: "-0689,00;+0691,00;-0046,00;-0,000;-0,000;-0,000;-0,000"
A170: Depuis | B170: San Salvador / NAD27 | C170: Clarke 1866 | D170: "+0001,00;+0140,00;+0165,00;-0,000;-0,000;-0,000;-0,000"
A171: Depuis | B171: Sarawak / Timbalai 1948 | C171: Everst 1830 | D171: "-0689,00;+0691,00;-0046,00;-0,000;-0,000;-0,000;-0,000"
A172: Depuis | B172: Senegal / Adindan | C172: Clarke 1880 Mod | D172: "-0128,00;-0018,00;+0224,00;-0,000;-0,000;-0,000;-0,000"
A173: Depuis | B173: Singapour / Kertau 1948 | C173: Everest Mod | D173: "-0011,00;+0851,00;+0005,00;-0,000;-0,000;-0,000;-0,000"
A174: Depuis | B174: Singapour / Kertau 1948 | C174: Everest 1830 | D174: "+0008,21;+0861,39;+0001,31;-0,000;-0,000;+0,814;-0,380"
A175: Depuis | B175: Singapour / South Asia | C175: Fisher Mod | D175: "+0007,00;-0010,00;-0026,00;-0,000;-0,000;-0,000;-0,000"
A176: Depuis | B176: Somalie / Afgooye | C176: Krassovsky | D176: "-0043,00;-0163,00;+0045,00;-0,000;-0,000;-0,000;-0,000"
A177: Depuis | B177: Soudan / Adindan | C177: Clarke 1880 Mod | D177: "-0161,00;-0014,00;+0205,00;-0,000;-0,000;-0,000;-0,000"
A178: Depuis | B178: Sri Lanka / Kandawala | C178: Everest 1830 | D178: "-0097,00;+0787,00;+0086,00;-0,000;-0,000;-0,000;-0,000"
A179: Depuis | B179: Sumatra / Djakarta (Batavia) | C179: Bessel 1841 | D179: "-0377,00;+0681,00;-0050,00;-0,000;-0,000;-0,000;-0,000"
A180: Depuis | B180: Surinam / Zanderij | C180: International | D180: "-0265,00;+0120,00;-0358,00;-0,000;-0,000;-0,000;-0,000"
B181: Swaziland / Cape Arc 1950 | C181: Clarke 1880 | D181: "-0134,00;-0105,00;-0295,00;-0,000;-0,000;-0,000;-0,000"
A182: Depuis | B182: Tanzanie / Cape Arc 1960 | C182: Clarke 1880 | D182: "-0158,00;-0012,00;-0299,00;-0,000;-0,000;-0,000;-0,000"
A183: Depuis | B183: Tasmanie / Australian National | C183: RE 1967 | D183: "-0134,00;-0048,00;+0149,00;-0,000;-0,000;-0,000;-0,000"
A184: Depuis | B184: Thailande / Indian | C184: Everest 1830 | D184: "+0214,00;+0836,00;+0303,00;-0,000;-0,000;-0,000;-0,000"
A185: Depuis | B185: Thailande / Moattama | C185: WGS84 | D185: "-0004,69;+0008,50;+0002,89;-0,000;-0,000;-0,000;-0,000"
A186: Depuis | B186: Tunisie / Carthage | C186: Clarke 1880 Mod | D186: "-0263,00;+0006,00;+0431,00;-0,000;-0,000;-0,000;-0,000"
A187: Depuis | B187: Turquie / NAD27 | C187: Clarke 1866 | D187: "-0007,00;+0152,00;+0178,00;-0,000;-0,000;-0,000;-0,000"
A188: Depuis | B188: USA / NAD27 (CONUS) | C188: Clarke 1866 | D188: "-0022,00;+0157,00;+0180,50;-0,000;-0,000;+0,554;+0,227" | EC188: "-0022,00;+0157,00;+0176,00;-0,000;-0,000;-0,000;-0,000"
A189: Depuis | B189: Venezuela / Prov. S. American 1956 | C189: International | D189: "-0288,00;+0175,00;-0376,00;-0,000;-0,000;-0,000;-0,000"
A190: Depuis | B190: Venezuela / S. American 1969 | C190: S. American 1969 | D190: "-0057,00;+0001,00;-0041,00;-0,000;-0,000;-0,000;-0,000"
A191: Depuis | B191: Vietnam / Indian | C191: Everest 1830 | D191: "+0289,00;+0734,00;+0257,00;-0,000;-0,000;-0,000;-0,000"
A192: Depuis | B192: Zaire / Cape Arc 1950 | C192: Clarke 1880 | D192: "-0169,00;-0019,00;-0278,00;-0,000;-0,000;-0,000;-0,000"
A193: Depuis | B193: Zambie / Cape Arc 1950 | C193: Clarke 1880 | D193: "-0147,00;-0074,00;-0283,00;-0,000;-0,000;-0,000;-0,000"
A194: Depuis | B194: Zimbabwe / Cape Arc 1950 | C194: Clarke 1880 | D194: "-0142,00;-0096,00;-0293,00;-0,000;-0,000;-0,000;-0,000"
A195: Depuis | B195: /
A196: Depuis | B196: /
A197: Depuis | B197: /
A198: Depuis | B198: /
A199: Depuis | B199: /
A200: Depuis | B200: /
A201: Depuis | B201: /
... 2 more rows
